{"text_format":"3","workbook":"xlsx","n_sheets":4,"sheets":["清单编制说明","工程量清单","甲定品牌一览表","定额计价程序表"],"not_rendered":{"external_links":181,"defined_names":4845},"read":"whole","date_system":"1900"}

{"sheet":"清单编制说明","index":0,"n_rows":32,"n_cols":2,"rows_kept":32,"merged":[[0,0,0,1],[0,2,0,3],[0,4,0,5],[0,6,0,7],[0,8,0,9],[0,10,0,11],[0,12,0,13],[0,14,0,15],[0,16,0,17],[0,18,0,19],[0,20,0,21],[0,22,0,23],[0,24,0,25],[0,26,0,27],[0,28,0,29],[0,30,0,31],[0,32,0,33],[0,34,0,35],[0,36,0,37],[0,38,0,39],[0,40,0,41],[0,42,0,43],[0,44,0,45],[0,46,0,47],[0,48,0,49],[0,50,0,51],[0,52,0,53],[0,54,0,55],[0,56,0,57],[0,58,0,59],[0,60,0,61],[0,62,0,63],[0,64,0,65],[0,66,0,67],[0,68,0,69],[0,70,0,71],[0,72,0,73],[0,74,0,75],[0,76,0,77],[0,78,0,79],[0,80,0,81],[0,82,0,83],[0,84,0,85],[0,86,0,87],[0,88,0,89],[0,90,0,91],[0,92,0,93],[0,94,0,95],[0,96,0,97],[0,98,0,99],[0,100,0,101],[0,102,0,103],[0,104,0,105],[0,106,0,107],[0,108,0,109],[0,110,0,111],[0,112,0,113],[0,114,0,115],[0,116,0,117],[0,118,0,119],[0,120,0,121],[0,122,0,123],[0,124,0,125],[0,126,0,127],[0,128,0,129],[0,130,0,131],[0,132,0,133],[0,134,0,135],[0,136,0,137],[0,138,0,139],[0,140,0,141],[0,142,0,143],[0,144,0,145],[0,146,0,147],[0,148,0,149],[0,150,0,151],[0,152,0,153],[0,154,0,155],[0,156,0,157],[0,158,0,159],[0,160,0,161],[0,162,0,163],[0,164,0,165],[0,166,0,167],[0,168,0,169],[0,170,0,171],[0,172,0,173],[0,174,0,175],[0,176,0,177],[0,178,0,179],[0,180,0,181],[0,182,0,183],[0,184,0,185],[0,186,0,187],[0,188,0,189],[0,190,0,191],[0,192,0,193],[0,194,0,195],[0,196,0,197],[0,198,0,199],[0,200,0,201],[0,202,0,203],[0,204,0,205],[0,206,0,207],[0,208,0,209],[0,210,0,211],[0,212,0,213],[0,214,0,215],[0,216,0,217],[0,218,0,219],[0,220,0,221],[0,222,0,223],[0,224,0,225],[0,226,0,227],[0,228,0,229],[0,230,0,231],[0,232,0,233],[0,234,0,235],[0,236,0,237],[0,238,0,239],[0,240,0,241],[0,242,0,243],[0,244,0,245],[0,246,0,247],[0,248,0,249],[0,250,0,251],[0,252,0,253],[0,254,0,255]]}
["广昌保障房配套基础设施项目施工总承包--土建劳务分包（均昌路+广湾街）"]
["序号","清单编制说明"]
["一","清单编制范围及依据"]
[1.1,"工程概况：三条市政路及配套设施，具体如下：（1）均昌路：均昌路路线起点与珠海大道辅道相接，终点与在建的广南路相接，道路全长约468.147米。（2）广湾街：广湾街路线起点与在建的广南路相接，终点与安民街相接，道路全长约549.188米。（3）新翠路：新翠路路线起点与在建的洪湾大道相接，终点位于广昌小学处，道路全长约968.185 米。以上三条道路的主要建设内容包括：道路工程、市政给排水工程、照明工程以及电缆沟、通信沟及排洪渠、连接变电站的临时道路等配套附属设施。道路等级：城市支路。"]
[1.2,"项目承包方式：劳务分包þ；专业分包□；其他□。"]
[1.3,"项目承揽范围：本次施工范围为均昌路、广湾街内的：1、沟槽土石方挖填、雨污水处理（含成品管涵、现浇砼暗涵施工）\n2、褥垫层工程\n3、道路附属工程（截水沟、边坡、挡墙、人行道铺装工程）\n4、排洪渠工程、箱涵工程\n5、拆除还建部\n6、电力通信工程（电缆沟、通信排管、缆线综合管廊、电缆沟提升等）。\n包含本合同段设计图纸要求必需完成的全部工序；具体以招标文件、设计图纸及甲方要求为准。"]
[1.4,"清单编制依据：                                                                                                                                                                                                                     （1）《建设工程工程量清单计价规范》GB50500-2013及附录；                                                                                                                                                                                                  \n（2）国家或省级、行业建设主管部门颁发的计价依据和办法；                                                                                                                    \n（3）建设工程设计文件；\n（4）与建设工程项目有关的标准、规范、技术资料；\n（5）招标文件及其补充通知、答疑纪要；\n（6）施工现场情况、工程特点及常规施工方案；                                                                                                                                                                                                                                                   \n（7）其他相关资料。"]
[1.5,"本工程量清单包括清单编制说明、工程量清单、甲定品牌一览表、定额计价程序表等，上述内容均构成合同不可分割的一部分。"]
[1.6,"清单未提及的工作内容应包含但不限于：相关规范、质量通病、招标文件、施工合同、图纸要求、现场施工条件、施工方式、配合及响应政府号召的相关工作。"]
["二","清单综合单价构成及说明"]
["2.1","清单综合单价包括完成一个约定计量单位的清单项目所需的人工费、材料费（甲供材料以外的所有材料费用）、施工机具使用费、机械进出场及安拆费用、保险费（施工人员团体意外伤害保险）、管理费、利润、措施费用（详见措施费用明细）、其他费用（详见其他费用明细）、税金（按合同清单约定税率）、作为一个有经验的承包商对项目充分了解及对风险充分估计后所需承担的风险费用。"]
["2.2","措施项目费的调整： ①结算时，若合同承包工程 项目（即图纸或预算标底项目）范围内工程量增加或设计变更而发生的相应项目措施费的，按原取费标准计算。 ②若招标人在招标时提供的工程量清单有重复计算的项目的或因为 非中标人原因，招标人删减了预算中的原定工作或项目，结算时该项工作对应的措施费一并扣除。 ③若合同承包工程项目（即图纸或预算标底项目）范围外增加或设计变更而发生的相应项目措施费 的，若以工程量计算的措施项目费，则予以调整，按招标控制价预算编制原则计算，并按中标降幅下浮。如以项计算的措施项目费，则不予调整。④由于政策调整导致项目终止政策调整或其他原因导 致工程规模缩减，措施费按实调整。⑤如若发生工期严重压缩，甲乙双方另行协商赶工措施费，原则上不超过业主确认的赶工措施费。"]
["2.3","清单综合单价包含其他费用明细：材料试验检验费（甲供材料以外的所有材料的试验检验费用）、配合费（包括甲乙双方配合及与甲方其他分包之间的配合费用）、材料保管费（包括移交给乙方施工的甲供材料）、合同约定工期内合理的赶工费用。"]
["2.4","施工作业中若发生相关水电费，结算时扣除方式：①安装水电表的，按照水电表按实扣除；②没安装水电表的，工程结算前基坑支护工程、桩基础工程按合同暂定总价的1.5%、除此之外的其他工程按合同暂定总价的0.5%先行计算扣除，工程结算时基坑支护工程、桩基础工程按结算总价的1.5%、除此之外的其他工程按结算总价的0.5%予以调整，不足100元按照扣除100元计算。"]
["2.5","关于工程保险的特别约定：该专用条款中约定投保的所有保险内容，有关费用已包含在合同价款中，均由乙方购买，甲方不再额外支付，保险有效期至工程竣工验收合格交付发包人使用为止。若是必须以甲方名义购买的，甲方购买保险的费用从当期进度款中扣回；若可由乙方代买的，由乙方按期足额购买，甲方配合。"]
["三","清单计价计量规则"]
[3.1,"本合同的工程量计算规则以本合同《工程量清单》中的工程量计量规则为准，未描述内容则参照《建设工程工程量清单计价规范》GB50500-2013及附录执行，如与本合同《工程量清单》中的工程量计量规则矛盾，则以本合同《工程量清单》中的工程量计量规则为准。"]
[3.2,"涉及到房屋建筑与装饰装修等工程的项目，按国家标准《房屋建筑与装饰工程计量规范》的相应项目执行；涉及到电气、给排水、消防等安装工程的项目，按照国家标准《通用安装工程计量规范》的相应项目执行；涉及到道路、室外给排水等工程的项目，按国家标准《市政工程计量规范》的相应项目执行。"]
["3.3","同样工作内容的清单，清单综合单价有高低时，按照综合单价低的原则结算。"]
["3.4","结算按实际发生的有效工程量计算，工程量必须由承包方签字确认。"]
["四","清单材料管理"]
[4.1,"本次招标有甲供材，非甲供材一切与乙方承包范围相关的材料均由乙方负责采购或租赁，其有关费用已包括在清单综合单价内。"]
["4.2","由乙方负责采购或租赁的材料设备由乙方按要求负责送检，相应检验费用已包含在清单综合单价中。由乙方负责采购或租赁的材料设备须符合甲方的品牌、品质要求，进场使用前须按甲方要求，接收检查，并提供材料设备相应的合格证明材料。"]
["五","增值税说明"]
["5.1","本工程需开具增值税专用发票，税率3 %，城建税、教育附加税等其他税费均已在价税分离中不含税部分综合考虑。若后期国家或地区增值税税率发生调整，则保持不含税综合单价不变，税金按政策进行相应调整（无论调增还是调减）。"]
["六","其他说明"]
[6.1,"报价前或签订本合同前，承包人已详细阅读并了解本说明、勘探报告、地下管线、施工用电、临时设施、现场情况等资料及项目所在地的政策环境和市场环境，并自行至工地现场踏勘，承包人因不了解上述资料或现场而提出的索赔将不予受理。"]
["6.2","本清单项目名称对工作内容的描述是简单性和概括性的，并非完整无缺，其它未提及的必需工序、辅助工作等均已综合考虑在本项目各综合单价中。清单中未开列或未有说明的费用，但合同约定为本工程工作内容及工程范围的，由投标单位综合考虑在已列出的清单项目中，结算时不予计算。"]
["6.3","投标人投标时除提供投标报价单外，还须提供报价组成文件作为标书的一部分，一般情况下需提供易达计价文件，如无法使用易达软件计价的情况，按《分包报价综合单价分析表》样表提供组价文件。"]
["6.4","投标人为完成图纸及分部分项工程量清单的内容，按国家现行有关建筑工程规范、规程及广东省和珠海市质量通病防治措施要求，为保证工程的质量和安全，必须采取的特殊措施以及配套完成的工作内容所需的费用。"]
["6.5","不论投标人是否考虑及如何填报报价，招标人均认为投标人已考虑下述情况的风险费用，结算时不再调整:  1、安全生产、文明施工所需的设施费由投标人负责；各类机械的进退场费、工程完工后的清场费用；通电验收等费用； 2、因施工用重型设备而导致周边道路的损坏与修复而产生的费用，因施工影响周边交通而发生的费用；3、施工现场的现 有设施及构筑物，中标人须采取保护措施，如有损毁须恢复原貌，其保护措施费及恢复费用由中标人 承担； 4、中标人对已完工的工程（包括水、电等成品及半成品），必须加以保护，因施工造成损 坏的须恢复原状。其保护费用及修复费用，不予调整； 5、凡与本工程实施期内同步交叉作业，投标人应充分考虑其他交叉作业项目所产生的干扰和影响；"]
["6.6","本项目不接受不平衡报价。"]

{"sheet":"工程量清单","index":1,"n_rows":309,"n_cols":12,"rows_kept":309,"merged":[[0,0,0,11],[1,0,1,11],[3,0,4,0],[3,1,4,1],[3,2,4,2],[3,3,4,3],[3,4,4,4],[3,5,4,5],[3,6,4,6],[3,7,3,9],[3,10,4,10],[3,11,4,11]]}
[{"$f":"清单编制说明!A1","v":"广昌保障房配套基础设施项目施工总承包--土建劳务分包（均昌路+广湾街）"}]
["招标预算价工程量暂定清单"]
[{"$nulls":10},"单位：元"]
["序号","项目名称","项目特征描述","甲供材","计量规则","计量\n单位","工程量","综合单价",null,null,"合价","备注"]
[{"$nulls":7},"不含税 综合单价","增值税率","含税     综合单价"]
[1,"【软基处理】"]
[2,"褥垫层",""]
[3,"石屑垫层","1、填方要求:石屑\n2、部位:褥垫层\n3、其他:综合考虑按图纸、规范、招标文件要求而实施、除甲供材外完成这项工程的一切有关费用","石屑","按竣工图图示尺寸且验收合格为准","m3",{"v":4345.5,"d":"4345.500"},null,{"v":0.03,"d":"3.00%"},{"$f":"ROUND(H8*(1+I8),2)","v":0},{"$f":"ROUND(J8*G8,2)","v":{"v":0,"d":"0.00"}}]
[4,"管道保护段"]
[5,"混凝土垫层","1、混凝土强度等级:C20素商品混凝土\n2、部位:垫层\n3、综合情况考虑：\n（1）综合考虑各种浇筑方式、砼强度等级、施工厚度、施工环境等；\n（2）综合单价包含砼浇筑：泵送浇筑前配合泵管布设、搬运，加固，场地清理，砼浇筑、收平收面收光（随打随抹光）、养护、路面清理清扫等；\n（3）综合单价包含分段施工垫层侧模模板支拆等相关措施，不另计价。\n3、其他:综合考虑按图纸、规范、招标文件要求而实施、除甲供材外完成这项工程的一切有关费用","混凝土","按竣工图图示尺寸且验收合格为准","m3",{"v":47.2,"d":"47.200"},null,{"v":0.03,"d":"3.00%"},{"$f":"ROUND(H10*(1+I10),2)","v":0},{"$f":"ROUND(J10*G10,2)","v":{"v":0,"d":"0.00"}}]
[6,"砼搭板","1、混凝土强度等级:C30商品混凝土\n2、综合情况考虑：\n（1）综合考虑各种浇筑方式、砼强度等级、施工厚度、施工环境等；\n（2）综合单价包含砼浇筑：泵送浇筑前配合泵管布设、搬运，加固，场地清理，砼浇筑、收平收面收光（随打随抹光）、养护、路面清理清扫等；\n（3）综合单价包含分段施工垫层侧模模板支拆等相关措施，不另计价。\n3、其他:综合考虑按图纸、规范、招标文件要求而实施、除甲供材外完成这项工程的一切有关费用","混凝土","按竣工图图示尺寸且验收合格为准","m3",{"v":141.59,"d":"141.590"},null,{"v":0.03,"d":"3.00%"},{"$f":"ROUND(H11*(1+I11),2)","v":0},{"$f":"ROUND(J11*G11,2)","v":{"v":0,"d":"0.00"}}]
[7,"现浇构件钢筋","1、材料种类：HRB400(Ⅲ级钢)\n2、钢筋规格：Ф12\n3、综合情况考虑：                                                                                                                                                                                    \n（1）综合考虑钢筋绑扎各种型号，施工部位、构件形状、绑扎方式（搭接、焊接、机械连接（含套筒材料费））、钢筋加固措施、施工难度等；\n（2）综合单价包含钢筋进场人工配合清点签收、上下车（含二次转运）、分类堆放，标识标牌等；\n（3）综合单价包含钢筋制作、钢筋安装，必须满足规范和设计图纸要求，达到验收标准；\n（4）综合单价包含钢筋原材、成品、半成品保护、预留钢筋保护（彩条布覆盖、刷水泥浆、套pvc管等）、防锈处理；包括砼浇筑时钢筋保护，调整，及剩余钢筋半成品材料回收利用等；\n4、其他:综合考虑按图纸、规范、招标文件要求而实施、除甲供材外完成这项工程的一切有关费用","钢筋","按照承包人审核后的钢筋翻样料表下料尺寸的理论重量计算以吨计,不计损耗。措施用钢筋不计工程量。","t",5.031,null,{"v":0.03,"d":"3.00%"},{"$f":"ROUND(H12*(1+I12),2)","v":0},{"$f":"ROUND(J12*G12,2)","v":{"v":0,"d":"0.00"}}]
[8,"【道路工程】"]
[9,"均昌路","",null,null,""]
[10,"机动车道","",null,null,""]
[11,"砼偏沟","1、工程部位：机动车\n2、混凝土强度等级：C35商品混凝土\n3、综合考虑按图纸、规范、招标文件要求而实施、除甲供材外完成这项工程的一切有关费用","混凝土","按竣工图图示尺寸且验收合格为准","m3",{"v":22.32,"d":"22.320"},null,{"v":0.03,"d":"3.00%"},{"$f":"ROUND(H16*(1+I16),2)","v":0},{"$f":"ROUND(J16*G16,2)","v":{"v":0,"d":"0.00"}}]
[12,"人行道","",null,null,""]
[13,"彩色透水砖","1、块料品种、规格：彩色透水砖，200mm×100mm×60mm\n2、基础、垫层材料品种、厚度：中粗砂调平层，厚20mm\n3、图形：按设计要求\n4、综合考虑按图纸、规范、招标文件要求而实施、除甲供材外完成这项工程的一切有关费用","彩色透水砖、砂","按竣工图图示尺寸且验收合格为准","m2",{"v":1604.72,"d":"1604.720"},null,{"v":0.03,"d":"3.00%"},{"$f":"ROUND(H18*(1+I18),2)","v":0},{"$f":"ROUND(J18*G18,2)","v":{"v":0,"d":"0.00"}}]
[14,"黄色盲道砖","1、块料品种、规格：黄色盲道砖，300mm×300mm×60mm\n2、基础、垫层材料品种、厚度：中粗砂调平层，厚20mm\n3、图形：按设计要求\n4、综合考虑按图纸、规范、招标文件要求而实施、除甲供材外完成这项工程的一切有关费用","黄色盲道砖、砂","按竣工图图示尺寸且验收合格为准","m2",{"v":325.35,"d":"325.350"},null,{"v":0.03,"d":"3.00%"},{"$f":"ROUND(H19*(1+I19),2)","v":0},{"$f":"ROUND(J19*G19,2)","v":{"v":0,"d":"0.00"}}]
[15,"原色透水混凝土基层","1、混凝土强度等级：C20原色透水混凝土\n2、厚度：150mm\n3、部位：人行道\n4、综合考虑按图纸、规范、招标文件要求而实施、除甲供材外完成这项工程的一切有关费用","混凝土","按竣工图图示尺寸且验收合格为准","m2",{"v":1930.07,"d":"1930.070"},null,{"v":0.03,"d":"3.00%"},{"$f":"ROUND(H20*(1+I20),2)","v":0},{"$f":"ROUND(J20*G20,2)","v":{"v":0,"d":"0.00"}}]
[16,"级配碎石垫层底基层","1、石料规格：级配碎石\n2、厚度：100mm\n3、综合考虑按图纸、规范、招标文件要求而实施、除甲供材外完成这项工程的一切有关费用","碎石、石屑","按竣工图图示尺寸且验收合格为准","m2",{"v":1930.07,"d":"1930.070"},null,{"v":0.03,"d":"3.00%"},{"$f":"ROUND(H21*(1+I21),2)","v":0},{"$f":"ROUND(J21*G21,2)","v":{"v":0,"d":"0.00"}}]
[17,"附属工程","",null,null,""]
[18,"Ⅰ型仿花岗岩路侧石","1、材料品种、规格：仿花岗岩路侧石，1000mm×400mm×150mm\n2、基础、垫层材料品种：C20商品混凝土\n3、综合考虑按图纸、规范、招标文件要求而实施、除甲供材外完成这项工程的一切有关费用","仿花岗岩路侧石、混凝土、水泥、砂","按竣工图图示尺寸且验收合格为准","m",897.85,null,{"v":0.03,"d":"3.00%"},{"$f":"ROUND(H23*(1+I23),2)","v":0},{"$f":"ROUND(J23*G23,2)","v":{"v":0,"d":"0.00"}}]
[19,"Ⅱ型仿花岗岩路平石","1、材料品种、规格：仿花岗岩路平石，1000mm×200mm×100mm\n2、基础、垫层材料品种：C20商品混凝土\n3、综合考虑按图纸、规范、招标文件要求而实施、除甲供材外完成这项工程的一切有关费用","仿花岗岩路平石、混凝土、水泥、砂","按竣工图图示尺寸且验收合格为准","m",534.05,null,{"v":0.03,"d":"3.00%"},{"$f":"ROUND(H24*(1+I24),2)","v":0},{"$f":"ROUND(J24*G24,2)","v":{"v":0,"d":"0.00"}}]
[20,"花岗岩防撞柱","1、材质：花岗岩\n2、类型：防撞柱\n3、规格、型号：Φ300，高500mm\n4、基础：C20商品混凝土\n5、综合考虑按图纸、规范、招标文件要求而实施、除甲供材外完成这项工程的一切有关费用","花岗岩防撞柱、混凝土","按竣工图图示尺寸且验收合格为准","根",24,null,{"v":0.03,"d":"3.00%"},{"$f":"ROUND(H25*(1+I25),2)","v":0},{"$f":"ROUND(J25*G25,2)","v":{"v":0,"d":"0.00"}}]
[21,"路基防护","",null,null,""]
[22,"小矮墙","",null,null,""]
[23,"填土方","1、密实度要求:按设计及规范要求\n2、填方材料品种:砂性土\n3、填方来源、运距:甲供，场内转运自行考虑\n4、综合考虑按图纸、规范、招标文件要求而实施、除甲供材外完成这项工程的一切有关费用","土方","按需回填部位，以实际回填体积计算（回填处底面积乘以设计图示回填土面标高至设计需回填部位底标高），扣除回填范围内的其他构筑物体积","m3",97.9,null,{"v":0.03,"d":"3.00%"},{"$f":"ROUND(H28*(1+I28),2)","v":0},{"$f":"ROUND(J28*G28,2)","v":{"v":0,"d":"0.00"}}]
[24,"石屑垫层","1、填方要求:石屑\n2、部位:小矮墙\n3、综合考虑按图纸、规范、招标文件要求而实施、除甲供材外完成这项工程的一切有关费用","石屑","按竣工图图示尺寸且验收合格为准","m3",12.5,null,{"v":0.03,"d":"3.00%"},0,{"v":0,"d":"0.00"}]
[25,"混凝土挡墙墙身","1、混凝土强度等级：C30商品混凝土\n2、沉降缝要求：沥青填料\n3、综合考虑按图纸、规范、招标文件要求而实施、除甲供材外完成这项工程的一切有关费用","混凝土","按竣工图图示尺寸且验收合格为准","m3",102.2,null,{"v":0.03,"d":"3.00%"},0,{"v":0,"d":"0.00"}]
[26,"芝麻灰花岗岩板压顶","1、找平层厚度、砂浆配合比：10mm，水泥砂浆M10\n2、面层材料品种、规格、颜色：芝麻灰花岗岩板，600mm×300mm×50mm\n3、综合考虑按图纸、规范、招标文件要求而实施、除甲供材外完成这项工程的一切有关费用","花岗岩、水泥、砂","按竣工图图示尺寸且验收合格为准","m2",31.7,null,{"v":0.03,"d":"3.00%"},0,{"v":0,"d":"0.00"}]
[27,"芝麻灰花岗岩板墙面","1、安装方式：镶贴\n2、面层材料品种、规格、颜色：芝麻灰花岗岩板，300mm×150mm×20mm\n3、找平层厚度、砂浆配合比：10mm，水泥砂浆M10\n4、缝宽、嵌缝材料种类：白水泥砂浆扫缝\n5、综合考虑按图纸、规范、招标文件要求而实施、除甲供材外完成这项工程的一切有关费用","花岗岩、水泥、砂","按竣工图图示尺寸且验收合格为准","m2",201.6,null,{"v":0.03,"d":"3.00%"},0,{"v":0,"d":"0.00"}]
[28,"现浇构件钢筋","1、材料种类：HRB400(Ⅲ级钢)\n2、钢筋规格：Ф12\n3、综合情况考虑：                                                                                                                                                                                    \n（1）综合考虑钢筋绑扎各种型号，施工部位、构件形状、绑扎方式（搭接、焊接、机械连接（含套筒材料费））、钢筋加固措施、施工难度等；\n（2）综合单价包含钢筋进场人工配合清点签收、上下车（含二次转运）、分类堆放，标识标牌等；\n（3）综合单价包含钢筋制作、钢筋安装，必须满足规范和设计图纸要求，达到验收标准；\n（4）综合单价包含钢筋原材、成品、半成品保护、预留钢筋保护（彩条布覆盖、刷水泥浆、套pvc管等）、防锈处理；包括砼浇筑时钢筋保护，调整，及剩余钢筋半成品材料回收利用等；\n4、其他:综合考虑按图纸、规范、招标文件要求而实施、除甲供材外完成这项工程的一切有关费用","钢筋","按照承包人审核后的钢筋翻样料表下料尺寸的理论重量计算以吨计,不计损耗。措施用钢筋不计工程量。","t",3.659,null,{"v":0.03,"d":"3.00%"},0,{"v":0,"d":"0.00"}]
[29,"悬臂式挡墙","",null,null,""]
[30,"填土方","1、密实度要求:按设计及规范要求\n2、填方材料品种:砂性土\n3、填方来源、运距:甲供，场内转运自行考虑\n4、综合考虑按图纸、规范、招标文件要求而实施、除甲供材外完成这项工程的一切有关费用","土方","按需回填部位，以实际回填体积计算（回填处底面积乘以设计图示回填土面标高至设计需回填部位底标高），扣除回填范围内的其他构筑物体积","m3",644.7,null,{"v":0.03,"d":"3.00%"},{"$f":"ROUND(H35*(1+I35),2)","v":0},{"$f":"ROUND(J35*G35,2)","v":{"v":0,"d":"0.00"}}]
[31,"悬臂式挡土墙","1、墙厚：300mm\n2、垫层材料、规格：碎石垫层\n3、混凝土强度等级：C30\n4、泄水孔材料品种、规格：PVC塑料管Φ100*3.2mm\n5、反滤包：碎石滤层\n6、沉降缝要求：沥青麻絮填实\n7、综合考虑按图纸、规范、招标文件要求而实施、除甲供材外完成这项工程的一切有关费用","混凝土、碎石","按竣工图图示尺寸且验收合格为准","m3",388.2,null,{"v":0.03,"d":"3.00%"},{"$f":"ROUND(H36*(1+I36),2)","v":0},{"$f":"ROUND(J36*G36,2)","v":{"v":0,"d":"0.00"}}]
[32,"现浇构件钢筋","1、材料种类：HRB400(Ⅲ级钢)\n2、钢筋规格：Ф10\n3、综合情况考虑：                                                                                                                                                                                    \n（1）综合考虑钢筋绑扎各种型号，施工部位、构件形状、绑扎方式（搭接、焊接、机械连接（含套筒材料费））、钢筋加固措施、施工难度等；\n（2）综合单价包含钢筋进场人工配合清点签收、上下车（含二次转运）、分类堆放，标识标牌等；\n（3）综合单价包含钢筋制作、钢筋安装，必须满足规范和设计图纸要求，达到验收标准；\n（4）综合单价包含钢筋原材、成品、半成品保护、预留钢筋保护（彩条布覆盖、刷水泥浆、套pvc管等）、防锈处理；包括砼浇筑时钢筋保护，调整，及剩余钢筋半成品材料回收利用等；\n4、其他:综合考虑按图纸、规范、招标文件要求而实施、除甲供材外完成这项工程的一切有关费用","钢筋","按照承包人审核后的钢筋翻样料表下料尺寸的理论重量计算以吨计,不计损耗。措施用钢筋不计工程量。","t",8.406,null,{"v":0.03,"d":"3.00%"},{"$f":"ROUND(H37*(1+I37),2)","v":0},{"$f":"ROUND(J37*G37,2)","v":{"v":0,"d":"0.00"}}]
[33,"现浇构件钢筋","1、材料种类：HRB400(Ⅲ级钢)\n2、钢筋规格：Ф12\n3、综合情况考虑：                                                                                                                                                                                    \n（1）综合考虑钢筋绑扎各种型号，施工部位、构件形状、绑扎方式（搭接、焊接、机械连接（含套筒材料费））、钢筋加固措施、施工难度等；\n（2）综合单价包含钢筋进场人工配合清点签收、上下车（含二次转运）、分类堆放，标识标牌等；\n（3）综合单价包含钢筋制作、钢筋安装，必须满足规范和设计图纸要求，达到验收标准；\n（4）综合单价包含钢筋原材、成品、半成品保护、预留钢筋保护（彩条布覆盖、刷水泥浆、套pvc管等）、防锈处理；包括砼浇筑时钢筋保护，调整，及剩余钢筋半成品材料回收利用等；\n4、其他:综合考虑按图纸、规范、招标文件要求而实施、除甲供材外完成这项工程的一切有关费用","钢筋","按照承包人审核后的钢筋翻样料表下料尺寸的理论重量计算以吨计,不计损耗。措施用钢筋不计工程量。","t",4.363,null,{"v":0.03,"d":"3.00%"},{"$f":"ROUND(H38*(1+I38),2)","v":0},{"$f":"ROUND(J38*G38,2)","v":{"v":0,"d":"0.00"}}]
[34,"现浇构件钢筋","1、材料种类：HRB400(Ⅲ级钢)\n2、钢筋规格：Ф20\n3、综合情况考虑：                                                                                                                                                                                    \n（1）综合考虑钢筋绑扎各种型号，施工部位、构件形状、绑扎方式（搭接、焊接、机械连接（含套筒材料费））、钢筋加固措施、施工难度等；\n（2）综合单价包含钢筋进场人工配合清点签收、上下车（含二次转运）、分类堆放，标识标牌等；\n（3）综合单价包含钢筋制作、钢筋安装，必须满足规范和设计图纸要求，达到验收标准；\n（4）综合单价包含钢筋原材、成品、半成品保护、预留钢筋保护（彩条布覆盖、刷水泥浆、套pvc管等）、防锈处理；包括砼浇筑时钢筋保护，调整，及剩余钢筋半成品材料回收利用等；\n4、其他:综合考虑按图纸、规范、招标文件要求而实施、除甲供材外完成这项工程的一切有关费用","钢筋","按照承包人审核后的钢筋翻样料表下料尺寸的理论重量计算以吨计,不计损耗。措施用钢筋不计工程量。","t",25.093,null,{"v":0.03,"d":"3.00%"},{"$f":"ROUND(H39*(1+I39),2)","v":0},{"$f":"ROUND(J39*G39,2)","v":{"v":0,"d":"0.00"}}]
[35,"路外顺接（台阶、坡道）","",null,null,""]
[36,"挖一般土方（外运方）","1、岩石类别：按地质勘察报告\n2、开凿深度：按现场情况综合考虑\n3、堆场运距：堆场按甲方指定，含场内转运\n4、综合情况考虑：（1）放破碎后的渣石，需按甲方规划进行场内堆放和道路回填。\n（2）车辆清洗、内外路面清洁、交警城管环卫等政府部门相关协调费用。\n（3）自行解决土石方施工时所需的施工道路的修建（含所需的材料，如砖渣、钢板之类）\n5、其他:综合考虑按图纸、规范、招标文件要求而实施、除甲供材外完成这项工程的一切有关费用。","/","1、按图纸所示施工范围，实挖土(石)方体积计算，以图示开挖底面积乘以开挖深度（按我方确定的原始地面方格网的平均标高至图示开挖底标高深度，扣减开挖范围内灌注桩所占体积）的体积另加图示放坡土方体积。因淤泥等其他一切因素造成的超挖导致的费用增加全部已包含在土方开挖的综合单价内不另计算。\n2、如同一个项目同时出现土方外运及场内转运的，分包人必须与项目部进行收方区分或者总平面图按区域划分。","m3",46.5,null,{"v":0.03,"d":"3.00%"},{"$f":"ROUND(H41*(1+I41),2)","v":0},{"$f":"ROUND(J41*G41,2)","v":{"v":0,"d":"0.00"}}]
[37,"石屑回填","1、密实度要求：按设计及规范要求\n2、填方材料品种：石屑\n3、填方粒径要求：按设计及规范要求\n4、填方来源：外购\n5、综合考虑按图纸、规范、招标文件要求而实施、除甲供材外完成这项工程的一切有关费用","石屑","按竣工图图示尺寸且验收合格为准","m3",118.71,null,{"v":0.03,"d":"3.00%"},{"$f":"ROUND(H42*(1+I42),2)","v":0},{"$f":"ROUND(J42*G42,2)","v":{"v":0,"d":"0.00"}}]
[38,"台阶","1、名称：台阶\n2、基层：素土夯实\n3、找平层：砂砾垫层\n4、混凝土种类：商品混凝土\n5、混凝土强度等级：C30\n6、综合考虑按图纸、规范、招标文件要求而实施、除甲供材外完成这项工程的一切有关费用","土方、砂砾、混凝土","按竣工图图示尺寸且验收合格为准","m3",38.92,null,{"v":0.03,"d":"3.00%"},{"$f":"ROUND(H43*(1+I43),2)","v":0},{"$f":"ROUND(J43*G43,2)","v":{"v":0,"d":"0.00"}}]
[39,"坡道","1、名称：坡道\n2、基层：素土夯实\n3、找平层：砂砾垫层\n4、混凝土种类：商品混凝土\n5、混凝土强度等级：C30\n6、综合考虑按图纸、规范、招标文件要求而实施、除甲供材外完成这项工程的一切有关费用","土方、砂砾、混凝土","按竣工图图示尺寸且验收合格为准","m3",14.86,null,{"v":0.03,"d":"3.00%"},{"$f":"ROUND(H44*(1+I44),2)","v":0},{"$f":"ROUND(J44*G44,2)","v":{"v":0,"d":"0.00"}}]
[40,"石材台阶面","1、找平层厚度、砂浆配合比：20mm，M10水泥砂浆\n2、黏结材料种类：素水泥浆\n3、面层材料品种、规格、颜色：光面花岗岩板20mm\n4、综合考虑按图纸、规范、招标文件要求而实施、除甲供材外完成这项工程的一切有关费用","花岗岩、水泥、砂","按竣工图图示尺寸且验收合格为准","m2",92.5,null,{"v":0.03,"d":"3.00%"},{"$f":"ROUND(H45*(1+I45),2)","v":0},{"$f":"ROUND(J45*G45,2)","v":{"v":0,"d":"0.00"}}]
[41,"广湾街","",null,null,""]
[42,"机动车道","",null,null,""]
[43,"C45钢筋混凝土上基层","1、混凝土强度等级：C45商品混凝土\n2、厚度：230mm\n3、综合考虑按图纸、规范、招标文件要求而实施、除甲供材外完成这项工程的一切有关费用","混凝土","按竣工图图示尺寸且验收合格为准","m2",7432.51,null,{"v":0.03,"d":"3.00%"},{"$f":"ROUND(H48*(1+I48),2)","v":0},{"$f":"ROUND(J48*G48,2)","v":{"v":0,"d":"0.00"}}]
[44,"现浇构件钢筋","1、材料种类：HRB400(Ⅲ级钢)\n2、钢筋规格：Ф12\n3、综合情况考虑：                                                                                                                                                                                    \n（1）综合考虑钢筋绑扎各种型号，施工部位、构件形状、绑扎方式（搭接、焊接、机械连接（含套筒材料费））、钢筋加固措施、施工难度等；\n（2）综合单价包含钢筋进场人工配合清点签收、上下车（含二次转运）、分类堆放，标识标牌等；\n（3）综合单价包含钢筋制作、钢筋安装，必须满足规范和设计图纸要求，达到验收标准；\n（4）综合单价包含钢筋原材、成品、半成品保护、预留钢筋保护（彩条布覆盖、刷水泥浆、套pvc管等）、防锈处理；包括砼浇筑时钢筋保护，调整，及剩余钢筋半成品材料回收利用等；\n4、其他:综合考虑按图纸、规范、招标文件要求而实施、除甲供材外完成这项工程的一切有关费用","钢筋","按照承包人审核后的钢筋翻样料表下料尺寸的理论重量计算以吨计,不计损耗。措施用钢筋不计工程量。","t",131.514,null,{"v":0.03,"d":"3.00%"},0,{"v":0,"d":"0.00"}]
[45,"胀缝（加设传力杆）","1、材料种类：HRB400(Ⅲ级钢)\n2、传力杆规格：Ф30\n3、构造筋规格：Ф12\n4、套筒：硬聚氯乙烯套筒Ф40，L=10cm\n5、填缝：PG道路封缝胶；填缝板\n6、综合考虑按图纸、规范、招标文件要求而实施、除甲供材外完成这项工程的一切有关费用","钢筋","按竣工图图示尺寸且验收合格为准","m",60,null,{"v":0.03,"d":"3.00%"},0,{"v":0,"d":"0.00"}]
[46,"缩缝（加设传力杆）","1、材料种类：HRB400(Ⅲ级钢)\n2、传力杆规格：Ф30\n3、填缝：沥青橡胶油膏填料\n4、综合考虑按图纸、规范、招标文件要求而实施、除甲供材外完成这项工程的一切有关费用","钢筋","按竣工图图示尺寸且验收合格为准","m",360,null,{"v":0.03,"d":"3.00%"},0,{"v":0,"d":"0.00"}]
[47,"缩缝","1、填缝：沥青橡胶油膏填料\n2、综合考虑按图纸、规范、招标文件要求而实施、除甲供材外完成这项工程的一切有关费用","/","按竣工图图示尺寸且验收合格为准","m",678.42,null,{"v":0.03,"d":"3.00%"},0,{"v":0,"d":"0.00"}]
[48,"施工缝","1、材料种类：HRB400(Ⅲ级钢)\n2、拉杆规格：Ф14\n3、综合考虑按图纸、规范、招标文件要求而实施、除甲供材外完成这项工程的一切有关费用","钢筋","按竣工图图示尺寸且验收合格为准","m",549.21,null,{"v":0.03,"d":"3.00%"},0,{"v":0,"d":"0.00"}]
[49,"砼偏沟","1、工程部位：机动车\n2、混凝土强度等级：C35商品混凝土\n3、综合考虑按图纸、规范、招标文件要求而实施、除甲供材外完成这项工程的一切有关费用","混凝土","按竣工图图示尺寸且验收合格为准","m3",25.53,null,{"v":0.03,"d":"3.00%"},0,{"v":0,"d":"0.00"}]
[50,"人行道","",null,null,""]
[51,"彩色透水砖","1、块料品种、规格：彩色透水砖，200mm×100mm×60mm\n2、基础、垫层材料品种、厚度：中粗砂调平层，厚20mm\n3、图形：按设计要求\n4、综合考虑按图纸、规范、招标文件要求而实施、除甲供材外完成这项工程的一切有关费用","彩色透水砖、砂","按竣工图图示尺寸且验收合格为准","m2",1820.72,null,{"v":0.03,"d":"3.00%"},{"$f":"ROUND(H56*(1+I56),2)","v":0},{"$f":"ROUND(J56*G56,2)","v":{"v":0,"d":"0.00"}}]
[52,"黄色盲道砖","1、块料品种、规格：黄色盲道砖，300mm×300mm×60mm\n2、基础、垫层材料品种、厚度：中粗砂调平层，厚20mm\n3、图形：按设计要求\n4、综合考虑按图纸、规范、招标文件要求而实施、除甲供材外完成这项工程的一切有关费用","黄色盲道砖、砂","按竣工图图示尺寸且验收合格为准","m2",367.4,null,{"v":0.03,"d":"3.00%"},{"$f":"ROUND(H57*(1+I57),2)","v":0},{"$f":"ROUND(J57*G57,2)","v":{"v":0,"d":"0.00"}}]
[53,"原色透水混凝土基层","1、混凝土强度等级：C20原色透水混凝土\n2、厚度：150mm\n3、部位：人行道\n4、综合考虑按图纸、规范、招标文件要求而实施、除甲供材外完成这项工程的一切有关费用","混凝土","按竣工图图示尺寸且验收合格为准","m2",2188.13,null,{"v":0.03,"d":"3.00%"},{"$f":"ROUND(H58*(1+I58),2)","v":0},{"$f":"ROUND(J58*G58,2)","v":{"v":0,"d":"0.00"}}]
[54,"级配碎石垫层底基层","1、石料规格：级配碎石\n2、厚度：100mm\n3、综合考虑按图纸、规范、招标文件要求而实施、除甲供材外完成这项工程的一切有关费用","碎石","按竣工图图示尺寸且验收合格为准","m2",2188.13,null,{"v":0.03,"d":"3.00%"},{"$f":"ROUND(H59*(1+I59),2)","v":0},{"$f":"ROUND(J59*G59,2)","v":{"v":0,"d":"0.00"}}]
[55,"附属工程","",null,null,""]
[56,"Ⅰ型仿花岗岩路侧石","1、材料品种、规格：仿花岗岩路侧石，1000mm×400mm×150mm\n2、基础、垫层材料品种：C20商品混凝土\n3、综合考虑按图纸、规范、招标文件要求而实施、除甲供材外完成这项工程的一切有关费用","花岗岩、混凝土、水泥、砂","按竣工图图示尺寸且验收合格为准","m",1034.25,null,{"v":0.03,"d":"3.00%"},{"$f":"ROUND(H61*(1+I61),2)","v":0},{"$f":"ROUND(J61*G61,2)","v":{"v":0,"d":"0.00"}}]
[57,"Ⅱ型仿花岗岩路平石","1、材料品种、规格：仿花岗岩路平石，1000mm×200mm×100mm\n2、基础、垫层材料品种：C20商品混凝土\n3、综合考虑按图纸、规范、招标文件要求而实施、除甲供材外完成这项工程的一切有关费用","花岗岩、混凝土、水泥、砂","按竣工图图示尺寸且验收合格为准","m",447.96,null,{"v":0.03,"d":"3.00%"},{"$f":"ROUND(H62*(1+I62),2)","v":0},{"$f":"ROUND(J62*G62,2)","v":{"v":0,"d":"0.00"}}]
[58,"花岗岩防撞柱","1、材质：花岗岩\n2、类型：防撞柱\n3、规格、型号：Φ300，高500mm\n4、基础：C20商品混凝土\n5、综合考虑按图纸、规范、招标文件要求而实施、除甲供材外完成这项工程的一切有关费用","花岗岩、混凝土","按竣工图图示尺寸且验收合格为准","根",32,null,{"v":0.03,"d":"3.00%"},{"$f":"ROUND(H63*(1+I63),2)","v":0},{"$f":"ROUND(J63*G63,2)","v":{"v":0,"d":"0.00"}}]
[59,"路基防护","",null,null,""]
[60,"小矮墙","",null,null,""]
[61,"填土方","1、密实度要求:按设计及规范要求\n2、填方材料品种:砂性土\n3、填方来源、运距:甲供，场内转运自行考虑\n4、综合考虑按图纸、规范、招标文件要求而实施、除甲供材外完成这项工程的一切有关费用","土方","按需回填部位，以实际回填体积计算（回填处底面积乘以设计图示回填土面标高至设计需回填部位底标高），扣除回填范围内的其他构筑物体积","m3",509.9,null,{"v":0.03,"d":"3.00%"},{"$f":"ROUND(H66*(1+I66),2)","v":0},{"$f":"ROUND(J66*G66,2)","v":{"v":0,"d":"0.00"}}]
[62,"石屑垫层","1、填方要求:石屑\n2、部位:小矮墙\n3、综合考虑按图纸、规范、招标文件要求而实施、除甲供材外完成这项工程的一切有关费用","石屑","按竣工图图示尺寸且验收合格为准","m3",65,null,{"v":0.03,"d":"3.00%"},{"$f":"ROUND(H67*(1+I67),2)","v":0},{"$f":"ROUND(J67*G67,2)","v":{"v":0,"d":"0.00"}}]
[63,"混凝土挡墙墙身","1、混凝土强度等级：C30商品混凝土\n2、沉降缝要求：沥青填料\n3、综合考虑按图纸、规范、招标文件要求而实施、除甲供材外完成这项工程的一切有关费用","混凝土","按竣工图图示尺寸且验收合格为准","m3",266.1,null,{"v":0.03,"d":"3.00%"},{"$f":"ROUND(H68*(1+I68),2)","v":0},{"$f":"ROUND(J68*G68,2)","v":{"v":0,"d":"0.00"}}]
[64,"芝麻灰花岗岩板压顶","1、找平层厚度、砂浆配合比：10mm，水泥砂浆M10\n2、面层材料品种、规格、颜色：芝麻灰花岗岩板，600mm×300mm×50mm\n3、综合考虑按图纸、规范、招标文件要求而实施、除甲供材外完成这项工程的一切有关费用","花岗岩、水泥、砂","按竣工图图示尺寸且验收合格为准","m2",165,null,{"v":0.03,"d":"3.00%"},{"$f":"ROUND(H69*(1+I69),2)","v":0},{"$f":"ROUND(J69*G69,2)","v":{"v":0,"d":"0.00"}}]
[65,"芝麻灰花岗岩板墙面","1、安装方式：镶贴\n2、面层材料品种、规格、颜色：芝麻灰花岗岩板，300mm×150mm×20mm\n3、找平层厚度、砂浆配合比：10mm，水泥砂浆M10\n4、缝宽、嵌缝材料种类：白水泥砂浆扫缝\n5、综合考虑按图纸、规范、招标文件要求而实施、除甲供材外完成这项工程的一切有关费用","花岗岩、水泥、砂","按竣工图图示尺寸且验收合格为准","m2",162.3,null,{"v":0.03,"d":"3.00%"},{"$f":"ROUND(H70*(1+I70),2)","v":0},{"$f":"ROUND(J70*G70,2)","v":{"v":0,"d":"0.00"}}]
[66,"广南路交叉口","",null,null,""]
[67,"人行道","",null,null,""]
[68,"花岗岩人行道砖","1、块料品种、规格：花岗岩人行道砖，200mm×100mm×60mm\n2、基础、垫层材料品种、厚度： M10水泥砂浆调平层，厚30mm\n3、图形：按设计要求\n4、综合考虑按图纸、规范、招标文件要求而实施、除甲供材外完成这项工程的一切有关费用","花岗岩、水泥、砂","按竣工图图示尺寸且验收合格为准","m2",695.24,null,{"v":0.03,"d":"3.00%"},{"$f":"ROUND(H73*(1+I73),2)","v":0},{"$f":"ROUND(J73*G73,2)","v":{"v":0,"d":"0.00"}}]
[69,"附属工程","",null,null,""]
[70,"Ⅲ型花岗岩路侧石","1、材料品种、规格：花岗岩路侧石，1000mm×450mm×150mm\n2、基础、垫层材料品种：C20商品混凝土\n3、综合考虑按图纸、规范、招标文件要求而实施、除甲供材外完成这项工程的一切有关费用","花岗岩、混凝土、水泥、砂","按竣工图图示尺寸且验收合格为准","m",21.72,null,{"v":0.03,"d":"3.00%"},{"$f":"ROUND(H75*(1+I75),2)","v":0},{"$f":"ROUND(J75*G75,2)","v":{"v":0,"d":"0.00"}}]
[71,"Ⅲ型花岗岩路侧石（利旧）","1、材料品种、规格：花岗岩路侧石，1000mm×450mm×150mm\n2、基础、垫层材料品种：C20商品混凝土\n3、综合考虑按图纸、规范、招标文件要求而实施、除甲供材外完成这项工程的一切有关费用","花岗岩、混凝土、水泥、砂","按竣工图图示尺寸且验收合格为准","m",50.68,null,{"v":0.03,"d":"3.00%"},0,{"v":0,"d":"0.00"},"利旧70%"]
[72,"Ⅳ型花岗岩路侧石","1、材料品种、规格：花岗岩路侧石，1000mm×400mm×150mm\n2、基础、垫层材料品种：C20商品混凝土\n3、综合考虑按图纸、规范、招标文件要求而实施、除甲供材外完成这项工程的一切有关费用","花岗岩、混凝土、水泥、砂","按竣工图图示尺寸且验收合格为准","m",44.15,null,{"v":0.03,"d":"3.00%"},0,{"v":0,"d":"0.00"}]
[73,"Ⅳ型花岗岩路侧石（利旧）","1、材料品种、规格：花岗岩路侧石，1000mm×400mm×150mm\n2、基础、垫层材料品种：C20商品混凝土\n3、综合考虑按图纸、规范、招标文件要求而实施、除甲供材外完成这项工程的一切有关费用","花岗岩、混凝土、水泥、砂","按竣工图图示尺寸且验收合格为准","m",103.02,null,{"v":0.03,"d":"3.00%"},0,{"v":0,"d":"0.00"},"利旧70%"]
[74,"Ⅴ型花岗岩路平石","1、材料品种、规格：花岗岩路平石，1000mm×200mm×100mm\n2、基础、垫层材料品种：C20商品混凝土\n3、综合考虑按图纸、规范、招标文件要求而实施、除甲供材外完成这项工程的一切有关费用","花岗岩、混凝土、水泥、砂","按竣工图图示尺寸且验收合格为准","m",33.11,null,{"v":0.03,"d":"3.00%"},0,{"v":0,"d":"0.00"}]
[75,"Ⅴ型花岗岩路平石（利旧）","1、材料品种、规格：花岗岩路平石，1000mm×200mm×100mm\n2、基础、垫层材料品种：C20商品混凝土\n3、综合考虑按图纸、规范、招标文件要求而实施、除甲供材外完成这项工程的一切有关费用","花岗岩、混凝土、水泥、砂","按竣工图图示尺寸且验收合格为准","m",77.25,null,{"v":0.03,"d":"3.00%"},0,{"v":0,"d":"0.00"},"利旧70%"]
[76,"花岗岩防撞柱","1、材质：花岗岩\n2、类型：防撞柱\n3、规格、型号：Φ300，高500mm\n4、基础：C20商品混凝土\n5、综合考虑按图纸、规范、招标文件要求而实施、除甲供材外完成这项工程的一切有关费用","花岗岩、混凝土","按竣工图图示尺寸且验收合格为准","根",{"v":7,"d":"7.000"},null,{"v":0.03,"d":"3.00%"},0,{"v":0,"d":"0.00"}]
[77,"花岗岩防撞柱（利旧）","1、材质：花岗岩\n2、类型：防撞柱\n3、规格、型号：Φ300，高500mm\n4、基础：C20商品混凝土\n5、综合考虑按图纸、规范、招标文件要求而实施、除甲供材外完成这项工程的一切有关费用","花岗岩、混凝土","按竣工图图示尺寸且验收合格为准","根",{"v":11,"d":"11.000"},null,{"v":0.03,"d":"3.00%"},0,{"v":0,"d":"0.00"},"按70%利旧"]
[78,"模板、脚手架工程"]
[79,"侧平石后座模板安拆","1、侧平石后座模板\n2、综合考虑按图纸、规范、招标文件要求而实施、完成这项工程的一切有关费用（包括但不限于除甲供模板木方以外的材料及机具费用，如对拉螺杆、铁钉、铁丝、垫块等）","模板、木方","按《市政工程计量规范》执行","m2",686.887,null,{"v":0.03,"d":"3.00%"},{"$f":"ROUND(H84*(1+I84),2)","v":0},{"$f":"ROUND(J84*G84,2)","v":{"v":0,"d":"0.00"}}]
[80,"挡墙模板安拆","1、挡墙模板\n2、综合考虑按图纸、规范、招标文件要求而实施、完成这项工程的一切有关费用（包括但不限于除甲供模板木方以外的材料及机具费用，如对拉螺杆、铁钉、铁丝、垫块等）","模板、木方","按《市政工程计量规范》执行","m2",{"v":3102.66,"d":"3102.660"},null,{"v":0.03,"d":"3.00%"},{"$f":"ROUND(H85*(1+I85),2)","v":0},{"$f":"ROUND(J85*G85,2)","v":{"v":0,"d":"0.00"}}]
[81,"台阶模板安拆","1、台阶模板\n2、综合考虑按图纸、规范、招标文件要求而实施、完成这项工程的一切有关费用（包括但不限于除甲供模板木方以外的材料及机具费用，如对拉螺杆、铁钉、铁丝、垫块等）","模板、木方","按《市政工程计量规范》执行","m2",36.323,null,{"v":0.03,"d":"3.00%"},{"$f":"ROUND(H86*(1+I86),2)","v":0},{"$f":"ROUND(J86*G86,2)","v":{"v":0,"d":"0.00"}}]
[82,"【箱涵工程】"]
[83,"土方工程","",null,null,""]
[84,"挖基坑土方（\t利用方）","1、岩石类别：按地质勘察报告\n2、开凿深度：按现场情况综合考虑\n3、堆场运距：堆场按甲方指定，含场内转运\n4、综合情况考虑：（1）放破碎后的渣石，需按甲方规划进行场内堆放和道路回填。\n（2）车辆清洗、内外路面清洁、交警城管环卫等政府部门相关协调费用。\n（3）自行解决土石方施工时所需的施工道路的修建（含所需的材料，如砖渣、钢板之类）\n5、其他:综合考虑按图纸、规范、招标文件要求而实施、除甲供材外完成这项工程的一切有关费用。","/","1、按基坑支护图纸所示施工范围，实挖土(石)方体积计算，以图示开挖底面积乘以开挖深度（按我方确定的原始地面方格网的平均标高至图示开挖底标高深度，扣减开挖范围内灌注桩所占体积）的体积另加图示放坡土方体积。因淤泥等其他一切因素造成的超挖导致的费用增加全部已包含在土方开挖的综合单价内不另计算。\n2、如同一个项目同时出现土方外运及场内转运的，分包人必须与项目部进行收方区分或者总平面图按区域划分。","m3",{"v":703,"d":"703.000"},null,{"v":0.03,"d":"3.00%"},{"$f":"ROUND(H89*(1+I89),2)","v":0},{"$f":"ROUND(J89*G89,2)","v":{"v":0,"d":"0.00"}},"利用率60%"]
[85,"挖基坑土方（余方）","1、岩石类别：按地质勘察报告\n2、开凿深度：按现场情况综合考虑\n3、堆场运距：堆场按甲方指定，含场内转运\n4、综合情况考虑：（1）放破碎后的渣石，需按甲方规划进行场内堆放和道路回填。\n（2）车辆清洗、内外路面清洁、交警城管环卫等政府部门相关协调费用。\n（3）自行解决土石方施工时所需的施工道路的修建（含所需的材料，如砖渣、钢板之类）\n5、其他:综合考虑按图纸、规范、招标文件要求而实施、除甲供材外完成这项工程的一切有关费用。","/","1、按基坑支护图纸所示施工范围，实挖土(石)方体积计算，以图示开挖底面积乘以开挖深度（按我方确定的原始地面方格网的平均标高至图示开挖底标高深度，扣减开挖范围内灌注桩所占体积）的体积另加图示放坡土方体积。因淤泥等其他一切因素造成的超挖导致的费用增加全部已包含在土方开挖的综合单价内不另计算。\n2、如同一个项目同时出现土方外运及场内转运的，分包人必须与项目部进行收方区分或者总平面图按区域划分。","m3",{"v":469.12,"d":"469.120"},null,{"v":0.03,"d":"3.00%"},{"$f":"ROUND(H90*(1+I90),2)","v":0},{"$f":"ROUND(J90*G90,2)","v":{"v":0,"d":"0.00"}}," 40%外弃（利用率60%）"]
[86,"1-5x3m钢筋砼箱涵","",null,null,""]
[87,"碎石垫层","1、密实度要求：按设计及规范要求\n2、填方材料品种：碎石\n3、填方粒径要求：按设计及规范要求\n4、其他:综合考虑按图纸、规范、招标文件要求而实施、除甲供材外完成这项工程的一切有关费用。","碎石","按竣工图图示尺寸且验收合格为准","m3",{"v":42,"d":"42.000"},null,{"v":0.03,"d":"3.00%"},{"$f":"ROUND(H92*(1+I92),2)","v":0},{"$f":"ROUND(J92*G92,2)","v":{"v":0,"d":"0.00"}}]
[88,"混凝土垫层","1、混凝土强度等级：C20商品混凝土\n2、部位：箱涵\n3、其他:综合考虑按图纸、规范、招标文件要求而实施、除甲供材外完成这项工程的一切有关费用。","混凝土","按竣工图图示尺寸且验收合格为准","m3",{"v":7.68,"d":"7.680"},null,{"v":0.03,"d":"3.00%"},0,{"v":0,"d":"0.00"}]
[89,"箱涵底板","1、混凝土强度等级：C35商品混凝土\n2、结构及做法:钢筋混凝土箱涵底板\n3、其他:综合考虑按图纸、规范、招标文件要求而实施、除甲供材外完成这项工程的一切有关费用。","混凝土","按竣工图图示尺寸且验收合格为准","m3",{"v":36,"d":"36.000"},null,{"v":0.03,"d":"3.00%"},0,{"v":0,"d":"0.00"}]
[90,"箱涵侧墙","1、混凝土强度等级：C35商品混凝土\n2、结构及做法:钢筋混凝土箱涵底板\n3、其他:综合考虑按图纸、规范、招标文件要求而实施、除甲供材外完成这项工程的一切有关费用。","混凝土","按竣工图图示尺寸且验收合格为准","m3",{"v":37.5,"d":"37.500"},null,{"v":0.03,"d":"3.00%"},0,{"v":0,"d":"0.00"}]
[91,"箱涵顶板","1、混凝土强度等级：C35商品混凝土\n2、结构及做法:钢筋混凝土箱涵底板\n3、其他:综合考虑按图纸、规范、招标文件要求而实施、除甲供材外完成这项工程的一切有关费用。","混凝土","按竣工图图示尺寸且验收合格为准","m3",{"v":36,"d":"36.000"},null,{"v":0.03,"d":"3.00%"},0,{"v":0,"d":"0.00"}]
[92,"牛腿","1、混凝土强度等级：C35商品混凝土\n2、结构及做法:钢筋混凝土箱涵牛腿\n3、其他:综合考虑按图纸、规范、招标文件要求而实施、除甲供材外完成这项工程的一切有关费用。","混凝土","按竣工图图示尺寸且验收合格为准","m3",{"v":3.24,"d":"3.240"},null,{"v":0.03,"d":"3.00%"},0,{"v":0,"d":"0.00"}]
[93,"翼墙","1、混凝土强度等级：C35商品混凝土\n2、结构及做法:钢筋混凝土翼墙\n3、其他:综合考虑按图纸、规范、招标文件要求而实施、除甲供材外完成这项工程的一切有关费用。","混凝土","按竣工图图示尺寸且验收合格为准","m3",{"v":17.5,"d":"17.500"},null,{"v":0.03,"d":"3.00%"},0,{"v":0,"d":"0.00"}]
[94,"箱涵接缝","1、材质：沥青麻絮\n2、工艺要求：填塞\n3、其他:综合考虑按图纸、规范、招标文件要求而实施、除甲供材外完成这项工程的一切有关费用。","/","按竣工图图示尺寸且验收合格为准","m",{"v":15.41,"d":"15.410"},null,{"v":0.03,"d":"3.00%"},0,{"v":0,"d":"0.00"}]
[95,"现浇构件钢筋","1、材料种类：HRB400(Ⅲ级钢)\n2、钢筋规格：Ф12\n3、综合情况考虑：                                                                                                                                                                                    \n（1）综合考虑钢筋绑扎各种型号，施工部位、构件形状、绑扎方式（搭接、焊接、机械连接（含套筒材料费））、钢筋加固措施、施工难度等；\n（2）综合单价包含钢筋进场人工配合清点签收、上下车（含二次转运）、分类堆放，标识标牌等；\n（3）综合单价包含钢筋制作、钢筋安装，必须满足规范和设计图纸要求，达到验收标准；\n（4）综合单价包含钢筋原材、成品、半成品保护、预留钢筋保护（彩条布覆盖、刷水泥浆、套pvc管等）、防锈处理；包括砼浇筑时钢筋保护，调整，及剩余钢筋半成品材料回收利用等；\n4、其他:综合考虑按图纸、规范、招标文件要求而实施、除甲供材外完成这项工程的一切有关费用","钢筋","按照承包人审核后的钢筋翻样料表下料尺寸的理论重量计算以吨计,不计损耗。措施用钢筋不计工程量。","t",{"v":5.3,"d":"5.300"},null,{"v":0.03,"d":"3.00%"},0,{"v":0,"d":"0.00"}]
[96,"现浇构件钢筋","1、材料种类：HRB400(Ⅲ级钢)\n2、钢筋规格：Ф16\n3、综合情况考虑：                                                                                                                                                                                    \n（1）综合考虑钢筋绑扎各种型号，施工部位、构件形状、绑扎方式（搭接、焊接、机械连接（含套筒材料费））、钢筋加固措施、施工难度等；\n（2）综合单价包含钢筋进场人工配合清点签收、上下车（含二次转运）、分类堆放，标识标牌等；\n（3）综合单价包含钢筋制作、钢筋安装，必须满足规范和设计图纸要求，达到验收标准；\n（4）综合单价包含钢筋原材、成品、半成品保护、预留钢筋保护（彩条布覆盖、刷水泥浆、套pvc管等）、防锈处理；包括砼浇筑时钢筋保护，调整，及剩余钢筋半成品材料回收利用等；\n4、其他:综合考虑按图纸、规范、招标文件要求而实施、除甲供材外完成这项工程的一切有关费用","钢筋","按照承包人审核后的钢筋翻样料表下料尺寸的理论重量计算以吨计,不计损耗。措施用钢筋不计工程量。","t",5.792,null,{"v":0.03,"d":"3.00%"},0,{"v":0,"d":"0.00"}]
[97,"现浇构件钢筋","1、材料种类：HRB400(Ⅲ级钢)\n2、钢筋规格：Ф22\n3、综合情况考虑：                                                                                                                                                                                    \n（1）综合考虑钢筋绑扎各种型号，施工部位、构件形状、绑扎方式（搭接、焊接、机械连接（含套筒材料费））、钢筋加固措施、施工难度等；\n（2）综合单价包含钢筋进场人工配合清点签收、上下车（含二次转运）、分类堆放，标识标牌等；\n（3）综合单价包含钢筋制作、钢筋安装，必须满足规范和设计图纸要求，达到验收标准；\n（4）综合单价包含钢筋原材、成品、半成品保护、预留钢筋保护（彩条布覆盖、刷水泥浆、套pvc管等）、防锈处理；包括砼浇筑时钢筋保护，调整，及剩余钢筋半成品材料回收利用等；\n4、其他:综合考虑按图纸、规范、招标文件要求而实施、除甲供材外完成这项工程的一切有关费用","钢筋","按照承包人审核后的钢筋翻样料表下料尺寸的理论重量计算以吨计,不计损耗。措施用钢筋不计工程量。","t",13.337,null,{"v":0.03,"d":"3.00%"},0,{"v":0,"d":"0.00"}]
[98,"混凝土搭板","",null,null,""]
[99,"混凝土垫层","1、混凝土强度等级：C20商品混凝土\n2、部位：搭板\n3、其他:综合考虑按图纸、规范、招标文件要求而实施、除甲供材外完成这项工程的一切有关费用。","混凝土","按竣工图图示尺寸且验收合格为准","m3",{"v":6.58,"d":"6.580"},null,{"v":0.03,"d":"3.00%"},{"$f":"ROUND(H104*(1+I104),2)","v":0},{"$f":"ROUND(J104*G104,2)","v":{"v":0,"d":"0.00"}}]
[100,"混凝土桥头搭板","1、混凝土强度等级：C35商品混凝土\n2、结构及做法:钢筋混凝土箱涵搭板\n3、其他:综合考虑按图纸、规范、招标文件要求而实施、除甲供材外完成这项工程的一切有关费用。","混凝土","按竣工图图示尺寸且验收合格为准","m3",{"v":17.5,"d":"17.500"},null,{"v":0.03,"d":"3.00%"},{"$f":"ROUND(H105*(1+I105),2)","v":0},{"$f":"ROUND(J105*G105,2)","v":{"v":0,"d":"0.00"}}]
[101,"现浇构件钢筋","1、材料种类：HRB400(Ⅲ级钢)\n2、钢筋规格：Ф12\n3、综合情况考虑：                                                                                                                                                                                    \n（1）综合考虑钢筋绑扎各种型号，施工部位、构件形状、绑扎方式（搭接、焊接、机械连接（含套筒材料费））、钢筋加固措施、施工难度等；\n（2）综合单价包含钢筋进场人工配合清点签收、上下车（含二次转运）、分类堆放，标识标牌等；\n（3）综合单价包含钢筋制作、钢筋安装，必须满足规范和设计图纸要求，达到验收标准；\n（4）综合单价包含钢筋原材、成品、半成品保护、预留钢筋保护（彩条布覆盖、刷水泥浆、套pvc管等）、防锈处理；包括砼浇筑时钢筋保护，调整，及剩余钢筋半成品材料回收利用等；\n4、其他:综合考虑按图纸、规范、招标文件要求而实施、除甲供材外完成这项工程的一切有关费用","钢筋","按照承包人审核后的钢筋翻样料表下料尺寸的理论重量计算以吨计,不计损耗。措施用钢筋不计工程量。","t",0.725,null,{"v":0.03,"d":"3.00%"},{"$f":"ROUND(H106*(1+I106),2)","v":0},{"$f":"ROUND(J106*G106,2)","v":{"v":0,"d":"0.00"}}]
[102,"现浇构件钢筋","1、材料种类：HRB400(Ⅲ级钢)\n2、钢筋规格：Ф16\n3、综合情况考虑：                                                                                                                                                                                    \n（1）综合考虑钢筋绑扎各种型号，施工部位、构件形状、绑扎方式（搭接、焊接、机械连接（含套筒材料费））、钢筋加固措施、施工难度等；\n（2）综合单价包含钢筋进场人工配合清点签收、上下车（含二次转运）、分类堆放，标识标牌等；\n（3）综合单价包含钢筋制作、钢筋安装，必须满足规范和设计图纸要求，达到验收标准；\n（4）综合单价包含钢筋原材、成品、半成品保护、预留钢筋保护（彩条布覆盖、刷水泥浆、套pvc管等）、防锈处理；包括砼浇筑时钢筋保护，调整，及剩余钢筋半成品材料回收利用等；\n4、其他:综合考虑按图纸、规范、招标文件要求而实施、除甲供材外完成这项工程的一切有关费用","钢筋","按照承包人审核后的钢筋翻样料表下料尺寸的理论重量计算以吨计,不计损耗。措施用钢筋不计工程量。","t",0.594,null,{"v":0.03,"d":"3.00%"},{"$f":"ROUND(H107*(1+I107),2)","v":0},{"$f":"ROUND(J107*G107,2)","v":{"v":0,"d":"0.00"}}]
[103,"现浇构件钢筋","1、材料种类：HRB400(Ⅲ级钢)\n2、钢筋规格：Ф22\n3、综合情况考虑：                                                                                                                                                                                    \n（1）综合考虑钢筋绑扎各种型号，施工部位、构件形状、绑扎方式（搭接、焊接、机械连接（含套筒材料费））、钢筋加固措施、施工难度等；\n（2）综合单价包含钢筋进场人工配合清点签收、上下车（含二次转运）、分类堆放，标识标牌等；\n（3）综合单价包含钢筋制作、钢筋安装，必须满足规范和设计图纸要求，达到验收标准；\n（4）综合单价包含钢筋原材、成品、半成品保护、预留钢筋保护（彩条布覆盖、刷水泥浆、套pvc管等）、防锈处理；包括砼浇筑时钢筋保护，调整，及剩余钢筋半成品材料回收利用等；\n4、其他:综合考虑按图纸、规范、招标文件要求而实施、除甲供材外完成这项工程的一切有关费用","钢筋","按照承包人审核后的钢筋翻样料表下料尺寸的理论重量计算以吨计,不计损耗。措施用钢筋不计工程量。","t",0.726,null,{"v":0.03,"d":"3.00%"},{"$f":"ROUND(H108*(1+I108),2)","v":0},{"$f":"ROUND(J108*G108,2)","v":{"v":0,"d":"0.00"}}]
[104,"挡土墙","",null,null,""]
[105,"悬臂式挡土墙","1、墙厚：300mm\n2、混凝土强度等级：C30\n3、泄水孔材料品种、规格：PVC塑料管Φ75*2mm\n4、反滤包：碎石滤层\n5、沉降缝要求：沥青麻絮填实\n6、其他:综合考虑按图纸、规范、招标文件要求而实施、除甲供材外完成这项工程的一切有关费用。","混凝土、碎石","按竣工图图示尺寸且验收合格为准","m3",{"v":25.66,"d":"25.660"},null,{"v":0.03,"d":"3.00%"},{"$f":"ROUND(H110*(1+I110),2)","v":0},{"$f":"ROUND(J110*G110,2)","v":{"v":0,"d":"0.00"}}]
[106,"现浇构件钢筋","1、材料种类：HRB400(Ⅲ级钢)\n2、钢筋规格：Ф10\n3、综合情况考虑：                                                                                                                                                                                    \n（1）综合考虑钢筋绑扎各种型号，施工部位、构件形状、绑扎方式（搭接、焊接、机械连接（含套筒材料费））、钢筋加固措施、施工难度等；\n（2）综合单价包含钢筋进场人工配合清点签收、上下车（含二次转运）、分类堆放，标识标牌等；\n（3）综合单价包含钢筋制作、钢筋安装，必须满足规范和设计图纸要求，达到验收标准；\n（4）综合单价包含钢筋原材、成品、半成品保护、预留钢筋保护（彩条布覆盖、刷水泥浆、套pvc管等）、防锈处理；包括砼浇筑时钢筋保护，调整，及剩余钢筋半成品材料回收利用等；\n4、其他:综合考虑按图纸、规范、招标文件要求而实施、除甲供材外完成这项工程的一切有关费用","钢筋","按照承包人审核后的钢筋翻样料表下料尺寸的理论重量计算以吨计,不计损耗。措施用钢筋不计工程量。","t",0.345,null,{"v":0.03,"d":"3.00%"},{"$f":"ROUND(H111*(1+I111),2)","v":0},{"$f":"ROUND(J111*G111,2)","v":{"v":0,"d":"0.00"}}]
[107,"现浇构件钢筋","1、材料种类：HRB400(Ⅲ级钢)\n2、钢筋规格：Ф12\n3、综合情况考虑：                                                                                                                                                                                    \n（1）综合考虑钢筋绑扎各种型号，施工部位、构件形状、绑扎方式（搭接、焊接、机械连接（含套筒材料费））、钢筋加固措施、施工难度等；\n（2）综合单价包含钢筋进场人工配合清点签收、上下车（含二次转运）、分类堆放，标识标牌等；\n（3）综合单价包含钢筋制作、钢筋安装，必须满足规范和设计图纸要求，达到验收标准；\n（4）综合单价包含钢筋原材、成品、半成品保护、预留钢筋保护（彩条布覆盖、刷水泥浆、套pvc管等）、防锈处理；包括砼浇筑时钢筋保护，调整，及剩余钢筋半成品材料回收利用等；\n4、其他:综合考虑按图纸、规范、招标文件要求而实施、除甲供材外完成这项工程的一切有关费用","钢筋","按照承包人审核后的钢筋翻样料表下料尺寸的理论重量计算以吨计,不计损耗。措施用钢筋不计工程量。","t",0.275,null,{"v":0.03,"d":"3.00%"},{"$f":"ROUND(H112*(1+I112),2)","v":0},{"$f":"ROUND(J112*G112,2)","v":{"v":0,"d":"0.00"}}]
[108,"现浇构件钢筋","1、材料种类：HRB400(Ⅲ级钢)\n2、钢筋规格：Ф14\n3、综合情况考虑：                                                                                                                                                                                    \n（1）综合考虑钢筋绑扎各种型号，施工部位、构件形状、绑扎方式（搭接、焊接、机械连接（含套筒材料费））、钢筋加固措施、施工难度等；\n（2）综合单价包含钢筋进场人工配合清点签收、上下车（含二次转运）、分类堆放，标识标牌等；\n（3）综合单价包含钢筋制作、钢筋安装，必须满足规范和设计图纸要求，达到验收标准；\n（4）综合单价包含钢筋原材、成品、半成品保护、预留钢筋保护（彩条布覆盖、刷水泥浆、套pvc管等）、防锈处理；包括砼浇筑时钢筋保护，调整，及剩余钢筋半成品材料回收利用等；\n4、其他:综合考虑按图纸、规范、招标文件要求而实施、除甲供材外完成这项工程的一切有关费用","钢筋","按照承包人审核后的钢筋翻样料表下料尺寸的理论重量计算以吨计,不计损耗。措施用钢筋不计工程量。","t",0.374,null,{"v":0.03,"d":"3.00%"},{"$f":"ROUND(H113*(1+I113),2)","v":0},{"$f":"ROUND(J113*G113,2)","v":{"v":0,"d":"0.00"}}]
[109,"现浇构件钢筋","1、材料种类：HRB400(Ⅲ级钢)\n2、钢筋规格：Ф18\n3、综合情况考虑：                                                                                                                                                                                    \n（1）综合考虑钢筋绑扎各种型号，施工部位、构件形状、绑扎方式（搭接、焊接、机械连接（含套筒材料费））、钢筋加固措施、施工难度等；\n（2）综合单价包含钢筋进场人工配合清点签收、上下车（含二次转运）、分类堆放，标识标牌等；\n（3）综合单价包含钢筋制作、钢筋安装，必须满足规范和设计图纸要求，达到验收标准；\n（4）综合单价包含钢筋原材、成品、半成品保护、预留钢筋保护（彩条布覆盖、刷水泥浆、套pvc管等）、防锈处理；包括砼浇筑时钢筋保护，调整，及剩余钢筋半成品材料回收利用等；\n4、其他:综合考虑按图纸、规范、招标文件要求而实施、除甲供材外完成这项工程的一切有关费用","钢筋","按照承包人审核后的钢筋翻样料表下料尺寸的理论重量计算以吨计,不计损耗。措施用钢筋不计工程量。","t",1.433,null,{"v":0.03,"d":"3.00%"},{"$f":"ROUND(H114*(1+I114),2)","v":0},{"$f":"ROUND(J114*G114,2)","v":{"v":0,"d":"0.00"}}]
[110,"围堰","",null,null,""]
[111,"围堰","1、围堰类型：袋装土围堰\n2、围堰顶宽及底宽：500m，1250mm\n3、围堰高度：2m\n4、填心材料：黏土\n5、其他:详见设计施工图及规范要求","/","按竣工图图示尺寸且验收合格为准","m3",{"v":32,"d":"32.000"},null,{"v":0.03,"d":"3.00%"},{"$f":"ROUND(H116*(1+I116),2)","v":0},{"$f":"ROUND(J116*G116,2)","v":{"v":0,"d":"0.00"}}]
[112,"防渗层","1、材料品种、规格：防渗土工膜280g/m2,渗透系数小于3.5×10 cm/s\n2、其他:详见设计施工图及规范要求","/","按竣工图图示尺寸且验收合格为准","m2",{"v":48,"d":"48.000"},null,{"v":0.03,"d":"3.00%"},{"$f":"ROUND(H117*(1+I117),2)","v":0},{"$f":"ROUND(J117*G117,2)","v":{"v":0,"d":"0.00"}}]
[113,"Ⅱ级钢筋混凝土管 D800","1、管道材料名称、规格：Ⅱ级钢筋混凝土管 D800\n2、接口形式：承插橡胶圈接口\n3、其他:详见设计施工图及规范要求","钢筋混凝土管、橡胶圈","按竣工图图示尺寸且验收合格为准","m",{"v":68.52,"d":"68.520"},null,{"v":0.03,"d":"3.00%"},{"$f":"ROUND(H118*(1+I118),2)","v":0},{"$f":"ROUND(J118*G118,2)","v":{"v":0,"d":"0.00"}}]
[114,"模板、脚手架工程"]
[115,"垫层模板安拆","1、垫层模板\n2、综合考虑按图纸、规范、招标文件要求而实施、完成这项工程的一切有关费用（包括但不限于除甲供模板木方以外的材料及机具费用，如对拉螺杆、铁钉、铁丝、垫块等）","模板、木方","按《市政工程计量规范》执行","m2","5.800",null,{"v":0.03,"d":"3.00%"},{"$f":"ROUND(H120*(1+I120),2)","v":0},{"$f":"ROUND(J120*G120,2)","v":{"v":0,"d":"0.00"}}]
[116,"基础模板安拆","1、基础模板\n2、综合考虑按图纸、规范、招标文件要求而实施、完成这项工程的一切有关费用（包括但不限于除甲供模板木方以外的材料及机具费用，如对拉螺杆、铁钉、铁丝、垫块等）","模板、木方","按《市政工程计量规范》执行","m2","8.500",null,{"v":0.03,"d":"3.00%"},0,{"v":0,"d":"0.00"}]
[117,"箱涵底板模板安拆","1、箱涵底板模板\n2、综合考虑按图纸、规范、招标文件要求而实施、完成这项工程的一切有关费用（包括但不限于除甲供模板木方以外的材料及机具费用，如对拉螺杆、铁钉、铁丝、垫块等）","模板、木方","按竣工图图示尺寸且验收合格为准","m2","12.000",null,{"v":0.03,"d":"3.00%"},0,{"v":0,"d":"0.00"}]
[118,"箱涵侧墙模板安拆","1、箱涵侧墙模板\n2、综合考虑按图纸、规范、招标文件要求而实施、完成这项工程的一切有关费用（包括但不限于除甲供模板木方以外的材料及机具费用，如对拉螺杆、铁钉、铁丝、垫块等）","模板、木方","按竣工图图示尺寸且验收合格为准","m2","162.800",null,{"v":0.03,"d":"3.00%"},0,{"v":0,"d":"0.00"}]
[119,"箱涵顶板模板安拆","1、箱涵顶板模板\n2、综合考虑按图纸、规范、招标文件要求而实施、完成这项工程的一切有关费用（包括但不限于除甲供模板木方以外的材料及机具费用，如对拉螺杆、铁钉、铁丝、垫块等）","模板、木方","按竣工图图示尺寸且验收合格为准","m2","72.000",null,{"v":0.03,"d":"3.00%"},0,{"v":0,"d":"0.00"}]
[120,"挡墙模板安拆","1、挡墙模板\n2、综合考虑按图纸、规范、招标文件要求而实施、完成这项工程的一切有关费用（包括但不限于除甲供模板木方以外的材料及机具费用，如对拉螺杆、铁钉、铁丝、垫块等）","模板、木方","按竣工图图示尺寸且验收合格为准","m2","200.960",null,{"v":0.03,"d":"3.00%"},0,{"v":0,"d":"0.00"}]
[121,"【拆除工程】"]
[122,"还建部分",""]
[123,"路床(槽)整形","1、部位：临时路\n2、范围：临时路\n3、综合考虑按图纸、规范、招标文件要求而实施、除甲供材外完成这项工程的一切有关费用","/","按竣工图图示尺寸且验收合格为准","m2",{"v":324.5,"d":"324.500"},null,{"v":0.03,"d":"3.00%"},{"$f":"ROUND(H128*(1+I128),2)","v":0},{"$f":"ROUND(J128*G128,2)","v":{"v":0,"d":"0.00"}}]
[124,"水泥砼面层","1、混凝土强度等级：C30商品混凝土\n2、厚度：220mm\n3、掺和料：按设计要求\n4、嵌缝材料：沥青玛蹄脂\n5、路面养生：水养生\n6、综合考虑按图纸、规范、招标文件要求而实施、除甲供材外完成这项工程的一切有关费用","混凝土","按竣工图图示尺寸且验收合格为准","m2",{"v":324.5,"d":"324.500"},null,{"v":0.03,"d":"3.00%"},{"$f":"ROUND(H129*(1+I129),2)","v":0},{"$f":"ROUND(J129*G129,2)","v":{"v":0,"d":"0.00"}}]
[125,"【污水工程】"]
[126,"污水工程","",null,null,""]
[127,"均昌路","",null,null,""]
[128,"污水管","",null,null,""]
[129,"DN400球墨铸铁污水管","1、材质及规格:DN400球墨铸铁污水管\n2、接口方式:承插胶圈接口\n3、管道检验及试验要求:管道闭水试验\n4、综合考虑按图纸、规范、招标文件要求而实施、除甲供材外完成这项工程的一切有关费用","球墨铸铁污水管、水泥、砂、标准砖","按竣工图图示尺寸且验收合格为准","m",{"v":80.2,"d":"80.200"},null,{"v":0.03,"d":"3.00%"},{"$f":"ROUND(H134*(1+I134),2)","v":0},{"$f":"ROUND(J134*G134,2)","v":{"v":0,"d":"0.00"}}]
[130,"DN500球墨铸铁污水管","1、材质及规格:DN500球墨铸铁污水管\n2、接口方式:承插胶圈接口\n3、管道检验及试验要求:管道闭水试验\n4、综合考虑按图纸、规范、招标文件要求而实施、除甲供材外完成这项工程的一切有关费用","球墨铸铁污水管、水泥、砂、标准砖","按竣工图图示尺寸且验收合格为准","m",{"v":425.64,"d":"425.640"},null,{"v":0.03,"d":"3.00%"},{"$f":"ROUND(H135*(1+I135),2)","v":0},{"$f":"ROUND(J135*G135,2)","v":{"v":0,"d":"0.00"}}]
[131,"DN600球墨铸铁污水管","1、材质及规格:DN600球墨铸铁污水管\n2、接口方式:承插胶圈接口\n3、管道检验及试验要求:管道闭水试验\n4、综合考虑按图纸、规范、招标文件要求而实施、除甲供材外完成这项工程的一切有关费用","球墨铸铁污水管、水泥、砂、标准砖","按竣工图图示尺寸且验收合格为准","m",{"v":23,"d":"23.000"},null,{"v":0.03,"d":"3.00%"},{"$f":"ROUND(H136*(1+I136),2)","v":0},{"$f":"ROUND(J136*G136,2)","v":{"v":0,"d":"0.00"}}]
[132,"检查井","",null,null,""]
[133,"圆形混凝土污水检查井 Φ1000（承载力≥400KN）,图集20S515-30、31","1、垫层及厚度:100mm厚C10混凝土垫层\n2、底板及墙身混凝土强度等级:C25钢筋混凝土\n3、盖板材质、规格:C25钢筋混凝土\n4、井盖、井圈材质及规格:C30预制混凝土井圈,φ700球墨铸铁防沉降井盖\n5、踏步材质、规格:塑钢爬梯\n6、钢筋:现浇、预制钢筋制安\n7、防坠落网制作安装\n8、图集号:20S515-30、31\n9、综合考虑按图纸、规范、招标文件要求而实施、除甲供材外完成这项工程的一切有关费用","Φ1000预制圆形混凝土雨水检查井、Φ1000C30预制混凝土井圈,φ700球墨铸铁防沉降井盖、预制混凝土调节环、塑钢爬梯、混凝土、防坠网","按竣工图图示尺寸且验收合格为准","座",{"v":23,"d":"23.000"},null,{"v":0.03,"d":"3.00%"},{"$f":"ROUND(H138*(1+I138),2)","v":0},{"$f":"ROUND(J138*G138,2)","v":{"v":0,"d":"0.00"}}]
[134,"基坑及支护工程","",null,null,""]
[135,"挖沟槽土方（利用方）","1、岩石类别：按地质勘察报告\n2、开凿深度：按现场情况综合考虑\n3、堆场运距：堆场按甲方指定，含场内转运\n4、综合情况考虑：（1）放破碎后的渣石，需按甲方规划进行场内堆放和道路回填。\n（2）车辆清洗、内外路面清洁、交警城管环卫等政府部门相关协调费用。\n（3）自行解决土石方施工时所需的施工道路的修建（含所需的材料，如砖渣、钢板之类）\n5、其他:综合考虑按图纸、规范、招标文件要求而实施、除甲供材外完成这项工程的一切有关费用。","/","1、按基坑支护图纸所示施工范围，实挖土(石)方体积计算，以图示开挖底面积乘以开挖深度（按我方确定的原始地面方格网的平均标高至图示开挖底标高深度，扣减开挖范围内灌注桩所占体积）的体积另加图示放坡土方体积。因淤泥等其他一切因素造成的超挖导致的费用增加全部已包含在土方开挖的综合单价内不另计算。\n2、如同一个项目同时出现土方外运及场内转运的，分包人必须与项目部进行收方区分或者总平面图按区域划分。","m3",{"v":2436.85,"d":"2436.850"},null,{"v":0.03,"d":"3.00%"},{"$f":"ROUND(H140*(1+I140),2)","v":0},{"$f":"ROUND(J140*G140,2)","v":{"v":0,"d":"0.00"}}]
[136,"回填土方（利用挖方）","1、密实度要求:按设计及规范要求\n2、填方材料品种:土方\n3、填方粒径要求:按设计及规范要求\n4、填方来源、运距:利用方，取土运距投标人自行考虑\n5、综合考虑按图纸、规范、招标文件要求而实施、除甲供材外完成这项工程的一切有关费用","/","按需回填部位，以实际回填体积计算（回填处底面积乘以设计图示回填土面标高至设计需回填部位底标高），扣除回填范围内的其他构筑物体积","m3",{"v":1369.77,"d":"1369.770"},null,{"v":0.03,"d":"3.00%"},0,{"v":0,"d":"0.00"}]
[137,"挖沟槽石屑（利用方）","1、土壤类别:按地质勘察报告\n2、挖土深度:按现场情况综合考虑\n3、综合考虑按图纸、规范、招标文件要求而实施、除甲供材外完成这项工程的一切有关费用","/","1、按图纸所示施工范围，实挖土(石)方体积计算，以图示开挖底面积乘以开挖深度（按我方确定的原始地面方格网的平均标高至图示开挖底标高深度，扣减开挖范围内灌注桩所占体积）的体积另加图示放坡土方体积。因淤泥等其他一切因素造成的超挖导致的费用增加全部已包含在土方开挖的综合单价内不另计算。\n2、如同一个项目同时出现土方外运及场内转运的，分包人必须与项目部进行收方区分或者总平面图按区域划分。","m3",{"v":262.65,"d":"262.650"},null,{"v":0.03,"d":"3.00%"},0,{"v":0,"d":"0.00"}]
[138,"回填石屑（利用挖方）","1、密实度要求:按设计及规范要求\n2、填方材料品种:石屑\n3、填方粒径要求:按设计及规范要求\n4、填方来源、运距:外购\n5、综合考虑按图纸、规范、招标文件要求而实施、除甲供材外完成这项工程的一切有关费用","/","按需回填部位，以实际回填体积计算（回填处底面积乘以设计图示回填土面标高至设计需回填部位底标高），扣除回填范围内的其他构筑物体积","m3",{"v":262.65,"d":"262.650"},null,{"v":0.03,"d":"3.00%"},0,{"v":0,"d":"0.00"}]
[139,"石屑垫层","1、密实度要求：按设计及规范要求\n2、材料品种：石屑\n3、填方粒径要求：按设计及规范要求\n4、填方来源：外购\n5、沟槽垫层\n6、综合考虑按图纸、规范、招标文件要求而实施、除甲供材外完成这项工程的一切有关费用","石屑","按竣工图图示尺寸且验收合格为准","m3",{"v":163.94,"d":"163.940"},null,{"v":0.03,"d":"3.00%"},0,{"v":0,"d":"0.00"}]
[140,"回填石屑","1、密实度要求:按设计及规范要求\n2、填方材料品种:石屑\n3、填方粒径要求:按设计及规范要求\n4、填方来源、运距:外购\n5、综合考虑按图纸、规范、招标文件要求而实施、除甲供材外完成这项工程的一切有关费用","石屑","按竣工图图示尺寸且验收合格为准","m3",{"v":863.11,"d":"863.110"},null,{"v":0.03,"d":"3.00%"},0,{"v":0,"d":"0.00"}]
[141,"广湾街","",null,null,""]
[142,"污水管","",null,null,""]
[143,"DN500球墨铸铁污水管","1、材质及规格:DN500球墨铸铁污水管\n2、接口方式:承插胶圈接口\n3、管道检验及试验要求:管道闭水试验\n4、综合考虑按图纸、规范、招标文件要求而实施、除甲供材外完成这项工程的一切有关费用","球墨铸铁污水管、水泥、砂、标准砖","按竣工图图示尺寸且验收合格为准","m",{"v":582,"d":"582.000"},null,{"v":0.03,"d":"3.00%"},{"$f":"ROUND(H148*(1+I148),2)","v":0},{"$f":"ROUND(J148*G148,2)","v":{"v":0,"d":"0.00"}}]
[144,"检查井","",null,null,""]
[145,"圆形混凝土污水检查井 Φ1000（承载力≥400KN）,图集20S515-30、31","1、垫层及厚度:100mm厚C10混凝土垫层\n2、底板及墙身混凝土强度等级:C25钢筋混凝土\n3、盖板材质、规格:C25钢筋混凝土\n4、井盖、井圈材质及规格:C30预制混凝土井圈,φ700球墨铸铁防沉降井盖\n5、踏步材质、规格:塑钢爬梯\n6、钢筋:现浇、预制钢筋制安\n7、防坠落网制作安装\n8、图集号:20S515-30、31\n9、综合考虑按图纸、规范、招标文件要求而实施、除甲供材外完成这项工程的一切有关费用","Φ1000预制圆形混凝土雨水检查井、Φ1000C30预制混凝土井圈,φ700球墨铸铁防沉降井盖、预制混凝土调节环、塑钢爬梯、混凝土、防坠网","按竣工图图示尺寸且验收合格为准","座",{"v":22,"d":"22.000"},null,{"v":0.03,"d":"3.00%"},{"$f":"ROUND(H150*(1+I150),2)","v":0},{"$f":"ROUND(J150*G150,2)","v":{"v":0,"d":"0.00"}}]
[146,"基坑及支护工程","",null,null,""]
[147,"挖沟槽土方（利用方）","1、土壤类别:按地质勘察报告\n2、挖土深度:按现场情况综合考虑\n3、综合考虑按图纸、规范、招标文件要求而实施、除甲供材外完成这项工程的一切有关费用","/","1、按图纸所示施工范围，实挖土(石)方体积计算，以图示开挖底面积乘以开挖深度（按我方确定的原始地面方格网的平均标高至图示开挖底标高深度，扣减开挖范围内灌注桩所占体积）的体积另加图示放坡土方体积。因淤泥等其他一切因素造成的超挖导致的费用增加全部已包含在土方开挖的综合单价内不另计算。\n2、如同一个项目同时出现土方外运及场内转运的，分包人必须与项目部进行收方区分或者总平面图按区域划分。","m3",{"v":5059.73,"d":"5059.730"},null,{"v":0.03,"d":"3.00%"},{"$f":"ROUND(H152*(1+I152),2)","v":0},{"$f":"ROUND(J152*G152,2)","v":{"v":0,"d":"0.00"}}]
[148,"回填土方（利用挖方）","1、密实度要求:按设计及规范要求\n2、填方材料品种:土方\n3、填方粒径要求:按设计及规范要求\n4、填方来源、运距:利用方，取土运距投标人自行考虑\n5、综合考虑按图纸、规范、招标文件要求而实施、除甲供材外完成这项工程的一切有关费用","/","按需回填部位，以实际回填体积计算（回填处底面积乘以设计图示回填土面标高至设计需回填部位底标高），扣除回填范围内的其他构筑物体积","m3",{"v":3214.97,"d":"3214.970"},null,{"v":0.03,"d":"3.00%"},{"$f":"ROUND(H153*(1+I153),2)","v":0},{"$f":"ROUND(J153*G153,2)","v":{"v":0,"d":"0.00"}}]
[149,"石屑垫层","1、密实度要求：按设计及规范要求\n2、材料品种：石屑\n3、填方粒径要求：按设计及规范要求\n4、填方来源：外购\n5、沟槽垫层\n6、综合考虑按图纸、规范、招标文件要求而实施、除甲供材外完成这项工程的一切有关费用","石屑","按竣工图图示尺寸且验收合格为准","m3",{"v":237.97,"d":"237.970"},null,{"v":0.03,"d":"3.00%"},{"$f":"ROUND(H154*(1+I154),2)","v":0},{"$f":"ROUND(J154*G154,2)","v":{"v":0,"d":"0.00"}}]
[150,"回填石屑","1、密实度要求:按设计及规范要求\n2、填方材料品种:石屑\n3、填方粒径要求:按设计及规范要求\n4、填方来源、运距:外购\n5、综合考虑按图纸、规范、招标文件要求而实施、除甲供材外完成这项工程的一切有关费用","石屑","按竣工图图示尺寸且验收合格为准","m3",{"v":1033.89,"d":"1033.890"},null,{"v":0.03,"d":"3.00%"},{"$f":"ROUND(H155*(1+I155),2)","v":0},{"$f":"ROUND(J155*G155,2)","v":{"v":0,"d":"0.00"}}]
[151,"拆除工程","",null,null,""]
[152,"拆除现状污水管道D400-D500","1、材质:球墨铸铁\n2、管径:400-500\n3、综合考虑按图纸、规范、招标文件要求而实施、除甲供材外完成这项工程的一切有关费用","/","按竣工图图示尺寸且验收合格为准","m",{"v":566,"d":"566.000"},null,{"v":0.03,"d":"3.00%"},{"$f":"ROUND(H157*(1+I157),2)","v":0},{"$f":"ROUND(J157*G157,2)","v":{"v":0,"d":"0.00"}}]
[153,"现状检查井加高","1、现状检查井加高\n2、加设防坠落设施\n3、综合考虑按图纸、规范、招标文件要求而实施、除甲供材外完成这项工程的一切有关费用","井盖、混凝土","按竣工图图示尺寸且验收合格为准","座",{"v":4,"d":"4.000"},null,{"v":0.03,"d":"3.00%"},{"$f":"ROUND(H158*(1+I158),2)","v":0},{"$f":"ROUND(J158*G158,2)","v":{"v":0,"d":"0.00"}}]
[154,"现状消火栓重建","1、部位：地上式\n2、型号、规格：支管深装SS150/65-1.0型\n3、综合考虑按图纸、规范、招标文件要求而实施、除甲供材外完成这项工程的一切有关费用","水泥","按竣工图图示尺寸且验收合格为准","个",{"v":3,"d":"3.000"},null,{"v":0.03,"d":"3.00%"},{"$f":"ROUND(H159*(1+I159),2)","v":0},{"$f":"ROUND(J159*G159,2)","v":{"v":0,"d":"0.00"}}]
[155,"残值回收","",null,null,""]
[156,"残值回收","1、拆除管道残值\n2、综合考虑按图纸和规范要求而实施、完成这项工程的一切有关费用","/","按竣工图图示尺寸且验收合格为准","t",{"v":54.99,"d":"54.990"},null,{"v":0.03,"d":"3.00%"},{"$f":"ROUND(H161*(1+I161),2)","v":0},{"$f":"ROUND(J161*G161,2)","v":{"v":0,"d":"0.00"}}]
[157,"模板、脚手架工程"]
[158,"均昌路"]
[159,"井字架安拆","1、钢管井字架安拆 井深4m以内\n2、综合考虑按图纸、规范、招标文件要求而实施、完成这项工程的一切有关费用（包括但不限于除甲供钢管及扣件以外的材料及机具费用，如缆风绳、附墙锚杆等）","钢管、扣件","按《市政工程计量规范》执行","座","22.000",null,{"v":0.03,"d":"3.00%"},{"$f":"ROUND(H164*(1+I164),2)","v":0},{"$f":"ROUND(J164*G164,2)","v":{"v":0,"d":"0.00"}}]
[160,"井字架安拆","1、钢管井字架安拆 井深6m以内\n2、综合考虑按图纸、规范、招标文件要求而实施、完成这项工程的一切有关费用（包括但不限于除甲供钢管及扣件以外的材料及机具费用，如缆风绳、附墙锚杆等）","钢管、扣件","按《市政工程计量规范》执行","座","1.000",null,{"v":0.03,"d":"3.00%"},0,{"v":0,"d":"0.00"}]
[161,"垫层模板安拆","1、混凝土基础垫层 木模\n2、综合考虑按图纸、规范、招标文件要求而实施、完成这项工程的一切有关费用（包括但不限于除甲供模板木方以外的材料及机具费用，如对拉螺杆、铁钉、铁丝、垫块等）","模板、木方","按《市政工程计量规范》执行","m2","12.280",null,{"v":0.03,"d":"3.00%"},0,{"v":0,"d":"0.00"}]
[162,"管(渠)道平基模板安拆","1、管、渠道及其他 管、渠道平基 复合木模\n2、综合考虑按图纸、规范、招标文件要求而实施、完成这项工程的一切有关费用（包括但不限于除甲供模板木方以外的材料及机具费用，如对拉螺杆、铁钉、铁丝、垫块等）","模板、木方","按《市政工程计量规范》执行","m2","23.110",null,{"v":0.03,"d":"3.00%"},0,{"v":0,"d":"0.00"}]
[163,"圆形井池壁模板安拆","1、构筑物及池类 圆形池壁 木模\n2、综合考虑按图纸、规范、招标文件要求而实施、完成这项工程的一切有关费用（包括但不限于除甲供模板木方以外的材料及机具费用，如对拉螺杆、铁钉、铁丝、垫块等）","模板、木方","按《市政工程计量规范》执行","m2","407.320",null,{"v":0.03,"d":"3.00%"},0,{"v":0,"d":"0.00"}]
[164,"预制井盖板模板安拆","1、管、渠道及其他 井盖板木模\n2、综合考虑按图纸、规范、招标文件要求而实施、完成这项工程的一切有关费用（包括但不限于除甲供模板木方以外的材料及机具费用，如对拉螺杆、铁钉、铁丝、垫块等）","模板、木方","按《市政工程计量规范》执行","m3","4.680",null,{"v":0.03,"d":"3.00%"},0,{"v":0,"d":"0.00"}]
[165,"预制井筒模板安拆","1、管、渠道及其他 小型构件木模\n2、综合考虑按图纸、规范、招标文件要求而实施、完成这项工程的一切有关费用（包括但不限于除甲供模板木方以外的材料及机具费用，如对拉螺杆、铁钉、铁丝、垫块等）","模板、木方","按《市政工程计量规范》执行","m2","5.950",null,{"v":0.03,"d":"3.00%"},0,{"v":0,"d":"0.00"}]
[166,"广湾街"]
[167,"井字架安拆","1、钢管井字架安拆 井深6m以内\n2、综合考虑按图纸、规范、招标文件要求而实施、完成这项工程的一切有关费用（包括但不限于除甲供钢管及扣件以外的材料及机具费用，如缆风绳、附墙锚杆等）","钢管、扣件","按《市政工程计量规范》执行","座","22.000",null,{"v":0.03,"d":"3.00%"},{"$f":"ROUND(H172*(1+I172),2)","v":0},{"$f":"ROUND(J172*G172,2)","v":{"v":0,"d":"0.00"}}]
[168,"垫层模板安拆","1、混凝土基础垫层 木模\n2、综合考虑按图纸、规范、招标文件要求而实施、完成这项工程的一切有关费用（包括但不限于除甲供模板木方以外的材料及机具费用，如对拉螺杆、铁钉、铁丝、垫块等）","模板、木方","按《市政工程计量规范》执行","m2","11.740",null,{"v":0.03,"d":"3.00%"},0,{"v":0,"d":"0.00"}]
[169,"管(渠)道平基模板安拆","1、管、渠道及其他 管、渠道平基 复合木模\n2、综合考虑按图纸、规范、招标文件要求而实施、完成这项工程的一切有关费用（包括但不限于除甲供模板木方以外的材料及机具费用，如对拉螺杆、铁钉、铁丝、垫块等）","模板、木方","按《市政工程计量规范》执行","m2","22.110",null,{"v":0.03,"d":"3.00%"},0,{"v":0,"d":"0.00"}]
[170,"圆形井池壁模板安拆","1、构筑物及池类 圆形池壁 木模\n2、综合考虑按图纸、规范、招标文件要求而实施、完成这项工程的一切有关费用（包括但不限于除甲供模板木方以外的材料及机具费用，如对拉螺杆、铁钉、铁丝、垫块等）","模板、木方","按《市政工程计量规范》执行","m2","389.610",null,{"v":0.03,"d":"3.00%"},0,{"v":0,"d":"0.00"}]
[171,"预制井盖板模板安拆","1、管、渠道及其他 井盖板木模\n2、综合考虑按图纸、规范、招标文件要求而实施、完成这项工程的一切有关费用（包括但不限于除甲供模板木方以外的材料及机具费用，如对拉螺杆、铁钉、铁丝、垫块等）","模板、木方","按《市政工程计量规范》执行","m3","4.470",null,{"v":0.03,"d":"3.00%"},0,{"v":0,"d":"0.00"}]
[172,"预制井筒模板安拆","1、管、渠道及其他 小型构件木模\n2、综合考虑按图纸、规范、招标文件要求而实施、完成这项工程的一切有关费用（包括但不限于除甲供模板木方以外的材料及机具费用，如对拉螺杆、铁钉、铁丝、垫块等）","模板、木方","按《市政工程计量规范》执行","m2","5.690",null,{"v":0.03,"d":"3.00%"},0,{"v":0,"d":"0.00"}]
[173,"【雨水工程】"]
[174,"雨水工程","",null,null,""]
[175,"均昌路","",null,null,""]
[176,"雨水管渠","",null,null,""]
[177,"Ⅱ级钢筋混凝土管 D300","1、管道材料名称、规格：Ⅱ级钢筋混凝土管 D300\n2、接口形式：承插橡胶圈接口\n3、管座基础：C20混凝土基础\n4、综合考虑按图纸、规范、招标文件要求而实施、除甲供材外完成这项工程的一切有关费用","钢筋混凝土管、橡胶圈、混凝土","按竣工图图示尺寸且验收合格为准","m",{"v":306.48,"d":"306.480"},null,{"v":0.03,"d":"3.00%"},{"$f":"ROUND(H182*(1+I182),2)","v":0},{"$f":"ROUND(J182*G182,2)","v":{"v":0,"d":"0.00"}}]
[178,"Ⅱ级钢筋混凝土管 D800","1、管道材料名称、规格：Ⅱ级钢筋混凝土管 D800\n2、接口形式：承插橡胶圈接口\n3、管座基础：C20混凝土基础\n4、综合考虑按图纸、规范、招标文件要求而实施、除甲供材外完成这项工程的一切有关费用","钢筋混凝土管、橡胶圈、混凝土","按竣工图图示尺寸且验收合格为准","m",{"v":289.53,"d":"289.530"},null,{"v":0.03,"d":"3.00%"},{"$f":"ROUND(H183*(1+I183),2)","v":0},{"$f":"ROUND(J183*G183,2)","v":{"v":0,"d":"0.00"}}]
[179,"Ⅱ级钢筋混凝土管 D1000","1、管道材料名称、规格：Ⅱ级钢筋混凝土管 D1000\n2、接口形式：承插橡胶圈接口\n3、管座基础：C20混凝土基础\n4、综合考虑按图纸、规范、招标文件要求而实施、除甲供材外完成这项工程的一切有关费用","钢筋混凝土管、橡胶圈、混凝土","按竣工图图示尺寸且验收合格为准","m",{"v":207.71,"d":"207.710"},null,{"v":0.03,"d":"3.00%"},{"$f":"ROUND(H184*(1+I184),2)","v":0},{"$f":"ROUND(J184*G184,2)","v":{"v":0,"d":"0.00"}}]
[180,"雨水检查井","",null,null,""]
[181,"圆形混凝土雨水检查井 Φ1500（承载力≥400KN）,图集20S515-29、31","1、垫层及厚度:100mm厚C10混凝土垫层\n2、底板及墙身混凝土强度等级:C25钢筋混凝土\n3、盖板材质、规格:C25钢筋混凝土\n4、井盖、井圈材质及规格:C30预制混凝土井圈,φ700球墨铸铁防沉降井盖\n5、踏步材质、规格:塑钢爬梯\n6、钢筋:现浇、预制钢筋制安\n7、防坠落网制作安装\n8、图集号:20S515-29、31\n9、综合考虑按图纸、规范、招标文件要求而实施、除甲供材外完成这项工程的一切有关费用","Φ1500预制圆形混凝土雨水检查井、Φ1500C30预制混凝土井圈,φ700球墨铸铁防沉降井盖、预制混凝土调节环、塑钢爬梯、混凝土、防坠网","按竣工图图示尺寸且验收合格为准","座",{"v":21,"d":"21.000"},null,{"v":0.03,"d":"3.00%"},{"$f":"ROUND(H186*(1+I186),2)","v":0},{"$f":"ROUND(J186*G186,2)","v":{"v":0,"d":"0.00"}}]
[182,"环保双箅雨水口","1、类型:环保型双篦雨水口\n2、结构及做法:详见设计图纸及相应图集\n3、井深:1.0m\n4、雨水篦子及圈口材质、型号、规格:防盗型球墨铸铁（成套）\n5、综合考虑按图纸、规范、招标文件要求而实施、除甲供材外完成这项工程的一切有关费用","铸铁平箅含井圈、钢筋、混凝土、水泥、砂、砖","按竣工图图示尺寸且验收合格为准","座",{"v":34,"d":"34.000"},null,{"v":0.03,"d":"3.00%"},{"$f":"ROUND(H187*(1+I187),2)","v":0},{"$f":"ROUND(J187*G187,2)","v":{"v":0,"d":"0.00"}}]
[183,"基坑及支护工程","",null,null,""]
[184,"挖沟槽土方（余方）","1、土壤类别：按地质勘察报告\n2、挖土深度：按现场情况综合考虑\n3、运距:可利用到填方，场内转运运距由投标人自行考虑\n4、综合考虑按图纸、规范、招标文件要求而实施、除甲供材外完成这项工程的一切有关费用","/","1、按图纸所示施工范围，实挖土(石)方体积计算，以图示开挖底面积乘以开挖深度（按我方确定的原始地面方格网的平均标高至图示开挖底标高深度，扣减开挖范围内灌注桩所占体积）的体积另加图示放坡土方体积。因淤泥等其他一切因素造成的超挖导致的费用增加全部已包含在土方开挖的综合单价内不另计算。\n2、如同一个项目同时出现土方外运及场内转运的，分包人必须与项目部进行收方区分或者总平面图按区域划分。","m3",{"v":2785.94,"d":"2785.940"},null,{"v":0.03,"d":"3.00%"},{"$f":"ROUND(H189*(1+I189),2)","v":0},{"$f":"ROUND(J189*G189,2)","v":{"v":0,"d":"0.00"}}]
[185,"挖沟槽土方（利用方）","1、土壤类别:按地质勘察报告\n2、挖土深度:按现场情况综合考虑\n3、综合考虑按图纸、规范、招标文件要求而实施、除甲供材外完成这项工程的一切有关费用","/","1、按图纸所示施工范围，实挖土(石)方体积计算，以图示开挖底面积乘以开挖深度（按我方确定的原始地面方格网的平均标高至图示开挖底标高深度，扣减开挖范围内灌注桩所占体积）的体积另加图示放坡土方体积。因淤泥等其他一切因素造成的超挖导致的费用增加全部已包含在土方开挖的综合单价内不另计算。\n2、如同一个项目同时出现土方外运及场内转运的，分包人必须与项目部进行收方区分或者总平面图按区域划分。","m3",{"v":484.71,"d":"484.710"},null,{"v":0.03,"d":"3.00%"},0,{"v":0,"d":"0.00"}]
[186,"挖沟槽石屑（利用方）","1、土壤类别:按地质勘察报告\n2、挖土深度:按现场情况综合考虑\n3、综合考虑按图纸、规范、招标文件要求而实施、除甲供材外完成这项工程的一切有关费用","/","1、按图纸所示施工范围，实挖土(石)方体积计算，以图示开挖底面积乘以开挖深度（按我方确定的原始地面方格网的平均标高至图示开挖底标高深度，扣减开挖范围内灌注桩所占体积）的体积另加图示放坡土方体积。因淤泥等其他一切因素造成的超挖导致的费用增加全部已包含在土方开挖的综合单价内不另计算。\n2、如同一个项目同时出现土方外运及场内转运的，分包人必须与项目部进行收方区分或者总平面图按区域划分。","m3",{"v":708.27,"d":"708.270"},null,{"v":0.03,"d":"3.00%"},0,{"v":0,"d":"0.00"}]
[187,"回填石屑（利用挖方）","1、密实度要求:按设计及规范要求\n2、填方材料品种:石屑\n3、填方粒径要求:按设计及规范要求\n4、填方来源、运距:外购\n5、综合考虑按图纸、规范、招标文件要求而实施、除甲供材外完成这项工程的一切有关费用","/","按需回填部位，以实际回填体积计算（回填处底面积乘以设计图示回填土面标高至设计需回填部位底标高），扣除回填范围内的其他构筑物体积","m3",{"v":708.27,"d":"708.270"},null,{"v":0.03,"d":"3.00%"},0,{"v":0,"d":"0.00"}]
[188,"石屑垫层","1、密实度要求：按设计及规范要求\n2、材料品种：石屑\n3、填方粒径要求：按设计及规范要求\n4、填方来源：外购\n5、沟槽垫层\n6、综合考虑按图纸、规范、招标文件要求而实施、除甲供材外完成这项工程的一切有关费用","石屑","按竣工图图示尺寸且验收合格为准","m3",{"v":261.84,"d":"261.840"},null,{"v":0.03,"d":"3.00%"},0,{"v":0,"d":"0.00"}]
[189,"回填石屑","1、密实度要求:按设计及规范要求\n2、填方材料品种:石屑\n3、填方粒径要求:按设计及规范要求\n4、填方来源、运距:外购\n5、综合考虑按图纸、规范、招标文件要求而实施、除甲供材外完成这项工程的一切有关费用","石屑","按竣工图图示尺寸且验收合格为准","m3",{"v":2113.97,"d":"2113.970"},null,{"v":0.03,"d":"3.00%"},0,{"v":0,"d":"0.00"}]
[190,"广湾街","",null,null,""]
[191,"雨水管渠","",null,null,""]
[192,"Ⅱ级钢筋混凝土管 D300","1、管道材料名称、规格：Ⅱ级钢筋混凝土管 D300\n2、接口形式：承插橡胶圈接口\n3、管座基础：C20混凝土基础\n4、综合考虑按图纸、规范、招标文件要求而实施、除甲供材外完成这项工程的一切有关费用","钢筋混凝土管、橡胶圈、混凝土","按竣工图图示尺寸且验收合格为准","m",{"v":432.25,"d":"432.250"},null,{"v":0.03,"d":"3.00%"},{"$f":"ROUND(H197*(1+I197),2)","v":0},{"$f":"ROUND(J197*G197,2)","v":{"v":0,"d":"0.00"}}]
[193,"Ⅱ级钢筋混凝土管 D800","1、管道材料名称、规格：Ⅱ级钢筋混凝土管 D800\n2、接口形式：承插橡胶圈接口\n3、管座基础：C20混凝土基础\n4、综合考虑按图纸、规范、招标文件要求而实施、除甲供材外完成这项工程的一切有关费用","钢筋混凝土管、橡胶圈、混凝土","按竣工图图示尺寸且验收合格为准","m",{"v":143.33,"d":"143.330"},null,{"v":0.03,"d":"3.00%"},{"$f":"ROUND(H198*(1+I198),2)","v":0},{"$f":"ROUND(J198*G198,2)","v":{"v":0,"d":"0.00"}}]
[194,"Ⅱ级钢筋混凝土管 D1000","1、管道材料名称、规格：Ⅱ级钢筋混凝土管 D1000\n2、接口形式：承插橡胶圈接口\n3、管座基础：C20混凝土基础\n4、综合考虑按图纸、规范、招标文件要求而实施、除甲供材外完成这项工程的一切有关费用","钢筋混凝土管、橡胶圈、混凝土","按竣工图图示尺寸且验收合格为准","m",{"v":375.83,"d":"375.830"},null,{"v":0.03,"d":"3.00%"},{"$f":"ROUND(H199*(1+I199),2)","v":0},{"$f":"ROUND(J199*G199,2)","v":{"v":0,"d":"0.00"}}]
[195,"雨水检查井","",null,null,""]
[196,"圆形混凝土雨水检查井 Φ1500（承载力≥400KN）,图集20S515-29、31","1、垫层及厚度:100mm厚C10混凝土垫层\n2、底板及墙身混凝土强度等级:C25钢筋混凝土\n3、盖板材质、规格:C25钢筋混凝土\n4、井盖、井圈材质及规格:C30预制混凝土井圈,φ700球墨铸铁防沉降井盖\n5、踏步材质、规格:塑钢爬梯\n6、钢筋:现浇、预制钢筋制安\n7、防坠落网制作安装\n8、图集号:20S515-29、31\n9、综合考虑按图纸、规范、招标文件要求而实施、除甲供材外完成这项工程的一切有关费用","Φ1500预制圆形混凝土雨水检查井、Φ1500C30预制混凝土井圈,φ700球墨铸铁防沉降井盖、预制混凝土调节环、塑钢爬梯、混凝土、防坠网","按竣工图图示尺寸且验收合格为准","座",{"v":26,"d":"26.000"},null,{"v":0.03,"d":"3.00%"},{"$f":"ROUND(H201*(1+I201),2)","v":0},{"$f":"ROUND(J201*G201,2)","v":{"v":0,"d":"0.00"}}]
[197,"环保双箅雨水口","1、类型:环保型双篦雨水口\n2、结构及做法:详见设计图纸及相应图集\n3、井深:1.0m\n4、雨水篦子及圈口材质、型号、规格:防盗型球墨铸铁（成套）\n5、综合考虑按图纸、规范、招标文件要求而实施、除甲供材外完成这项工程的一切有关费用","铸铁平箅含井圈、钢筋、混凝土、水泥、砂、砖","按竣工图图示尺寸且验收合格为准","座",{"v":44,"d":"44.000"},null,{"v":0.03,"d":"3.00%"},{"$f":"ROUND(H202*(1+I202),2)","v":0},{"$f":"ROUND(J202*G202,2)","v":{"v":0,"d":"0.00"}}]
[198,"基坑及支护工程","",null,null,""]
[199,"挖沟槽土方（余方）","1、土壤类别：按地质勘察报告\n2、挖土深度：按现场情况综合考虑\n3、运距:可利用到填方，场内转运运距由投标人自行考虑\n4、综合考虑按图纸、规范、招标文件要求而实施、除甲供材外完成这项工程的一切有关费用","/","1、按图纸所示施工范围，实挖土(石)方体积计算，以图示开挖底面积乘以开挖深度（按我方确定的原始地面方格网的平均标高至图示开挖底标高深度，扣减开挖范围内灌注桩所占体积）的体积另加图示放坡土方体积。因淤泥等其他一切因素造成的超挖导致的费用增加全部已包含在土方开挖的综合单价内不另计算。\n2、如同一个项目同时出现土方外运及场内转运的，分包人必须与项目部进行收方区分或者总平面图按区域划分。","m3",{"v":1363.82,"d":"1363.820"},null,{"v":0.03,"d":"3.00%"},{"$f":"ROUND(H204*(1+I204),2)","v":0},{"$f":"ROUND(J204*G204,2)","v":{"v":0,"d":"0.00"}}]
[200,"挖沟槽土方（利用方）","1、土壤类别:按地质勘察报告\n2、挖土深度:按现场情况综合考虑\n3、综合考虑按图纸、规范、招标文件要求而实施、除甲供材外完成这项工程的一切有关费用","/","1、按图纸所示施工范围，实挖土(石)方体积计算，以图示开挖底面积乘以开挖深度（按我方确定的原始地面方格网的平均标高至图示开挖底标高深度，扣减开挖范围内灌注桩所占体积）的体积另加图示放坡土方体积。因淤泥等其他一切因素造成的超挖导致的费用增加全部已包含在土方开挖的综合单价内不另计算。\n2、如同一个项目同时出现土方外运及场内转运的，分包人必须与项目部进行收方区分或者总平面图按区域划分。","m3",{"v":1864.97,"d":"1864.970"},null,{"v":0.03,"d":"3.00%"},{"$f":"ROUND(H205*(1+I205),2)","v":0},{"$f":"ROUND(J205*G205,2)","v":{"v":0,"d":"0.00"}}]
[201,"回填土方（利用挖方）","1、密实度要求:按设计及规范要求\n2、填方材料品种:土方\n3、填方粒径要求:按设计及规范要求\n4、填方来源、运距:利用方，取土运距投标人自行考虑\n5、综合考虑按图纸、规范、招标文件要求而实施、除甲供材外完成这项工程的一切有关费用","/","按需回填部位，以实际回填体积计算（回填处底面积乘以设计图示回填土面标高至设计需回填部位底标高），扣除回填范围内的其他构筑物体积","m3",{"v":250.57,"d":"250.570"},null,{"v":0.03,"d":"3.00%"},{"$f":"ROUND(H206*(1+I206),2)","v":0},{"$f":"ROUND(J206*G206,2)","v":{"v":0,"d":"0.00"}}]
[202,"石屑垫层","1、密实度要求：按设计及规范要求\n2、材料品种：石屑\n3、填方粒径要求：按设计及规范要求\n4、填方来源：外购\n5、沟槽垫层\n6、综合考虑按图纸、规范、招标文件要求而实施、除甲供材外完成这项工程的一切有关费用","石屑","按竣工图图示尺寸且验收合格为准","m3",{"v":307.36,"d":"307.360"},null,{"v":0.03,"d":"3.00%"},{"$f":"ROUND(H207*(1+I207),2)","v":0},{"$f":"ROUND(J207*G207,2)","v":{"v":0,"d":"0.00"}}]
[203,"回填石屑","1、密实度要求:按设计及规范要求\n2、填方材料品种:石屑\n3、填方粒径要求:按设计及规范要求\n4、填方来源、运距:外购\n5、综合考虑按图纸、规范、招标文件要求而实施、除甲供材外完成这项工程的一切有关费用","石屑","按竣工图图示尺寸且验收合格为准","m3",{"v":1951.02,"d":"1951.020"},null,{"v":0.03,"d":"3.00%"},{"$f":"ROUND(H208*(1+I208),2)","v":0},{"$f":"ROUND(J208*G208,2)","v":{"v":0,"d":"0.00"}}]
[204,"雨水管线拆除","",null,null,""]
[205,"拆除雨水管 D800,Ⅱ级钢筋混凝土管","1、材质:Ⅱ级钢筋混凝土管\n2、管径:D800\n3、综合考虑按图纸、规范、招标文件要求而实施、除甲供材外完成这项工程的一切有关费用","/","按竣工图图示尺寸且验收合格为准","m",{"v":420,"d":"420.000"},null,{"v":0.03,"d":"3.00%"},{"$f":"ROUND(H210*(1+I210),2)","v":0},{"$f":"ROUND(J210*G210,2)","v":{"v":0,"d":"0.00"}}]
[206,"临时排水管","",null,null,""]
[207,"场地D400临时排水管","1、材质及规格:场地D400临时排水管\n2、综合考虑按图纸、规范、招标文件要求而实施、除甲供材外完成这项工程的一切有关费用","HDPE实壁排水管、橡胶圈","按竣工图图示尺寸且验收合格为准","m",{"v":550,"d":"550.000"},null,{"v":0.03,"d":"3.00%"},{"$f":"ROUND(H212*(1+I212),2)","v":0},{"$f":"ROUND(J212*G212,2)","v":{"v":0,"d":"0.00"}}]
[208,"模板、脚手架工程"]
[209,"均昌路"]
[210,"管线模板安拆"]
[211,"井字架安拆","1、钢管井字架安拆 井深4m以内\n2、综合考虑按图纸、规范、招标文件要求而实施、完成这项工程的一切有关费用（包括但不限于除甲供钢管及扣件以外的材料及机具费用，如缆风绳、附墙锚杆等）","钢管、扣件","按《市政工程计量规范》执行","座","21.000",null,{"v":0.03,"d":"3.00%"},{"$f":"ROUND(H216*(1+I216),2)","v":0},{"$f":"ROUND(J216*G216,2)","v":{"v":0,"d":"0.00"}}]
[212,"垫层模板安拆","1、混凝土基础垫层 木模\n2、综合考虑按图纸、规范、招标文件要求而实施、完成这项工程的一切有关费用（包括但不限于除甲供模板木方以外的材料及机具费用，如对拉螺杆、铁钉、铁丝、垫块等）","模板、木方","按《市政工程计量规范》执行","m2","41.370",null,{"v":0.03,"d":"3.00%"},0,{"v":0,"d":"0.00"}]
[213,"管(渠)道平基模板安拆","1、管、渠道及其他 管、渠道平基 复合木模\n2、综合考虑按图纸、规范、招标文件要求而实施、完成这项工程的一切有关费用（包括但不限于除甲供模板木方以外的材料及机具费用，如对拉螺杆、铁钉、铁丝、垫块等）","模板、木方","按《市政工程计量规范》执行","m2","27.690",null,{"v":0.03,"d":"3.00%"},0,{"v":0,"d":"0.00"}]
[214,"过梁模板安拆","1、构筑物及池类 连续梁、单梁 钢模\n2、综合考虑按图纸、规范、招标文件要求而实施、完成这项工程的一切有关费用（包括但不限于除甲供模板木方以外的材料及机具费用，如对拉螺杆、铁钉、铁丝、垫块等）","模板、木方","按《市政工程计量规范》执行","m2","27.440",null,{"v":0.03,"d":"3.00%"},0,{"v":0,"d":"0.00"}]
[215,"圆形井池壁模板安拆","1、构筑物及池类 圆形池壁 木模\n2、综合考虑按图纸、规范、招标文件要求而实施、完成这项工程的一切有关费用（包括但不限于除甲供模板木方以外的材料及机具费用，如对拉螺杆、铁钉、铁丝、垫块等）","模板、木方","按《市政工程计量规范》执行","m2","412.520",null,{"v":0.03,"d":"3.00%"},0,{"v":0,"d":"0.00"}]
[216,"预制井盖板模板安拆","1、管、渠道及其他 井盖板木模\n2、综合考虑按图纸、规范、招标文件要求而实施、完成这项工程的一切有关费用（包括但不限于除甲供模板木方以外的材料及机具费用，如对拉螺杆、铁钉、铁丝、垫块等）","模板、木方","按《市政工程计量规范》执行","m3","10.270",null,{"v":0.03,"d":"3.00%"},0,{"v":0,"d":"0.00"}]
[217,"管座模板安拆","1、管、渠道及其他 管座 复合木模\n2、综合考虑按图纸、规范、招标文件要求而实施、完成这项工程的一切有关费用（包括但不限于除甲供模板木方以外的材料及机具费用，如对拉螺杆、铁钉、铁丝、垫块等）","模板、木方","按《市政工程计量规范》执行","m2","415.740",null,{"v":0.03,"d":"3.00%"},0,{"v":0,"d":"0.00"}]
[218,"广湾街"]
[219,"管线模板安拆"]
[220,"井字架安拆","1、钢管井字架安拆 井深4m以内\n2、综合考虑按图纸、规范、招标文件要求而实施、完成这项工程的一切有关费用（包括但不限于除甲供钢管及扣件以外的材料及机具费用，如缆风绳、附墙锚杆等）","钢管、扣件","按《市政工程计量规范》执行","座","26.000",null,{"v":0.03,"d":"3.00%"},{"$f":"ROUND(H225*(1+I225),2)","v":0},{"$f":"ROUND(J225*G225,2)","v":{"v":0,"d":"0.00"}}]
[221,"垫层模板安拆","1、混凝土基础垫层 木模\n2、综合考虑按图纸、规范、招标文件要求而实施、完成这项工程的一切有关费用（包括但不限于除甲供模板木方以外的材料及机具费用，如对拉螺杆、铁钉、铁丝、垫块等）","模板、木方","按《市政工程计量规范》执行","m2","52.720",null,{"v":0.03,"d":"3.00%"},0,{"v":0,"d":"0.00"}]
[222,"管(渠)道平基模板安拆","1、管、渠道及其他 管、渠道平基 复合木模\n2、综合考虑按图纸、规范、招标文件要求而实施、完成这项工程的一切有关费用（包括但不限于除甲供模板木方以外的材料及机具费用，如对拉螺杆、铁钉、铁丝、垫块等）","模板、木方","按《市政工程计量规范》执行","m2","34.290",null,{"v":0.03,"d":"3.00%"},0,{"v":0,"d":"0.00"}]
[223,"过梁模板安拆","1、构筑物及池类 连续梁、单梁 钢模\n2、综合考虑按图纸、规范、招标文件要求而实施、完成这项工程的一切有关费用（包括但不限于除甲供模板木方以外的材料及机具费用，如对拉螺杆、铁钉、铁丝、垫块等）","模板、木方","按《市政工程计量规范》执行","m2","35.510",null,{"v":0.03,"d":"3.00%"},0,{"v":0,"d":"0.00"}]
[224,"圆形井池壁模板安拆","1、构筑物及池类 圆形池壁 木模\n2、综合考虑按图纸、规范、招标文件要求而实施、完成这项工程的一切有关费用（包括但不限于除甲供模板木方以外的材料及机具费用，如对拉螺杆、铁钉、铁丝、垫块等）","模板、木方","按《市政工程计量规范》执行","m2","510.740",null,{"v":0.03,"d":"3.00%"},0,{"v":0,"d":"0.00"}]
[225,"预制井盖板模板安拆","1、管、渠道及其他 井盖板木模\n2、综合考虑按图纸、规范、招标文件要求而实施、完成这项工程的一切有关费用（包括但不限于除甲供模板木方以外的材料及机具费用，如对拉螺杆、铁钉、铁丝、垫块等）","模板、木方","按《市政工程计量规范》执行","m3","12.710",null,{"v":0.03,"d":"3.00%"},0,{"v":0,"d":"0.00"}]
[226,"预制井筒模板安拆","1、管、渠道及其他 小型构件木模\n2、综合考虑按图纸、规范、招标文件要求而实施、完成这项工程的一切有关费用（包括但不限于除甲供模板木方以外的材料及机具费用，如对拉螺杆、铁钉、铁丝、垫块等）","模板、木方","按《市政工程计量规范》执行","m2","3.270",null,{"v":0.03,"d":"3.00%"},0,{"v":0,"d":"0.00"}]
[227,"管座模板安拆","1、管、渠道及其他 管座 复合木模\n2、综合考虑按图纸、规范、招标文件要求而实施、完成这项工程的一切有关费用（包括但不限于除甲供模板木方以外的材料及机具费用，如对拉螺杆、铁钉、铁丝、垫块等）","模板、木方","按《市政工程计量规范》执行","m2","468.180",null,{"v":0.03,"d":"3.00%"},0,{"v":0,"d":"0.00"}]
[228,"【电力通信】"]
[229,"电力通信","",null,null,""]
[230,"电缆沟工程","",null,null,""]
[231,"纤维编绕拉挤电缆导管 18*DB-BWERP150*5.5-SN50","1、名称：纤维编绕拉挤电缆导管\n2、规格:18×DB-BWERP150×5.5-SN50\n3、基础:C20混凝土包封\n4、其他:综合考虑按图纸、规范、招标文件要求而实施、除甲供材外完成这项工程的一切有关费用","混凝土、纤维编绕拉挤电缆导管、支架","按竣工图图示尺寸且验收合格为准","m",172.38,null,{"v":0.03,"d":"3.00%"},{"$f":"ROUND(H236*(1+I236),2)","v":0},{"$f":"ROUND(J236*G236,2)","v":{"v":0,"d":"0.00"}}]
[232,"纤维编绕拉挤电缆导管 6*DB-BWERP150*5.5-SN50","1、名称：纤维编绕拉挤电缆导管\n2、规格:6×DB-BWERP150×5.5-SN50\n3、基础:C20混凝土包封\n4、其他:综合考虑按图纸、规范、招标文件要求而实施、除甲供材外完成这项工程的一切有关费用","混凝土、纤维编绕拉挤电缆导管、支架","按竣工图图示尺寸且验收合格为准","m",22.56,null,{"v":0.03,"d":"3.00%"},0,{"v":0,"d":"0.00"}]
[233,"中型四通型电缆井","1、名称：中型四通型电缆井\n2、底板：C30钢筋混凝土底板\n3、井身：砖砌\n4、固定盖板：现浇 C30钢筋混凝土\n5、其他参数详见设计图并结合《电力电缆井设计与安装》有关要求\n6、其他:综合考虑按图纸、规范、招标文件要求而实施、除甲供材外完成这项工程的一切有关费用","钢筋、混凝土、水泥、砂、砖、防盗球墨铸铁检查井盖、支架","按竣工图图示尺寸且验收合格为准","座",{"v":3,"d":"3.000"},null,{"v":0.03,"d":"3.00%"},0,{"v":0,"d":"0.00"},"07SD101-8(62、65)-1.5"]
[234,"沟管中间人井","1、名称：缆线管廊II型沟管中间人井\n2、垫层：C20混凝土垫层\n3、底板：C30钢筋混凝土底板\n4、井身：砖砌\n5、固定盖板：现浇 C30钢筋混凝土\n6、活动盖板：现浇C25钢筋混凝土\n7、压顶：C20商品普通混凝土\n8、预埋电缆支架\n9、其他:综合考虑按图纸、规范、招标文件要求而实施、除甲供材外完成这项工程的一切有关费用","钢筋、混凝土、水泥、砂、砖、支架、塑钢爬梯、活动盖板镀锌框","按竣工图图示尺寸且验收合格为准","座",{"v":2,"d":"2.000"},null,{"v":0.03,"d":"3.00%"},0,{"v":0,"d":"0.00"}]
[235,"挖沟槽土方（利用方）","1、土壤类别：按地质勘察报告\n2、挖土深度：按现场情况综合考虑\n3、运距:可利用到填方，场内转运运距由投标人自行考虑\n4、其他:综合考虑按图纸、规范、招标文件要求而实施、除甲供材外完成这项工程的一切有关费用","/","1、按图纸所示施工范围，实挖土(石)方体积计算，以图示开挖底面积乘以开挖深度（按我方确定的原始地面方格网的平均标高至图示开挖底标高深度，扣减开挖范围内灌注桩所占体积）的体积另加图示放坡土方体积。因淤泥等其他一切因素造成的超挖导致的费用增加全部已包含在土方开挖的综合单价内不另计算。\n2、如同一个项目同时出现土方外运及场内转运的，分包人必须与项目部进行收方区分或者总平面图按区域划分。","m3",{"v":200.72,"d":"200.720"},null,{"v":0.03,"d":"3.00%"},0,{"v":0,"d":"0.00"},"场内土方平衡综合考虑"]
[236,"挖沟槽土方（本桩利用）","1、土壤类别:按地质勘察报告\n2、挖土深度:按现场情况综合考虑\n3、其他:综合考虑按图纸、规范、招标文件要求而实施、除甲供材外完成这项工程的一切有关费用","/","1、按图纸所示施工范围，实挖土(石)方体积计算，以图示开挖底面积乘以开挖深度（按我方确定的原始地面方格网的平均标高至图示开挖底标高深度，扣减开挖范围内灌注桩所占体积）的体积另加图示放坡土方体积。因淤泥等其他一切因素造成的超挖导致的费用增加全部已包含在土方开挖的综合单价内不另计算。\n2、如同一个项目同时出现土方外运及场内转运的，分包人必须与项目部进行收方区分或者总平面图按区域划分。","m3",{"v":269.39,"d":"269.390"},null,{"v":0.03,"d":"3.00%"},0,{"v":0,"d":"0.00"}]
[237,"回填土方（利用方）","1、密实度要求:按设计及规范要求\n2、填方材料品种:土方\n3、填方粒径要求:按设计及规范要求\n4、填方来源、运距:利用方，取土运距投标人自行考虑\n5、其他:综合考虑按图纸、规范、招标文件要求而实施、除甲供材外完成这项工程的一切有关费用","/","按需回填部位，以实际回填体积计算（回填处底面积乘以设计图示回填土面标高至设计需回填部位底标高），扣除回填范围内的其他构筑物体积","m3",{"v":269.39,"d":"269.390"},null,{"v":0.03,"d":"3.00%"},0,{"v":0,"d":"0.00"}]
[238,"通信管沟工程","",null,null,""]
[239,"通信排管6×De110UPVC","1、名称：通信排管\n2、规格:6×De110UPVC\n3、基础:C20混凝土包封\n4、其他:综合考虑按图纸、规范、招标文件要求而实施、除甲供材外完成这项工程的一切有关费用","通信排管及配件、支架、密封圈、混凝土","按竣工图图示尺寸且验收合格为准","m",42.41,null,{"v":0.03,"d":"3.00%"},{"$f":"ROUND(H244*(1+I244),2)","v":0},{"$f":"ROUND(J244*G244,2)","v":{"v":0,"d":"0.00"}}]
[240,"通信排管12×De110UPVC","1、名称：通信排管\n2、规格:12×De110UPVC\n3、基础:C20混凝土包封\n4、其他:综合考虑按图纸、规范、招标文件要求而实施、除甲供材外完成这项工程的一切有关费用","通信排管及配件、支架、密封圈、混凝土","按竣工图图示尺寸且验收合格为准","m",570.85,null,{"v":0.03,"d":"3.00%"},0,{"v":0,"d":"0.00"}]
[241,"大号直通型人孔井","1、名称:大号直通型通信人孔井\n2、其他：详见设计图纸及规范要求\n3、其他:综合考虑按图纸、规范、招标文件要求而实施、除甲供材外完成这项工程的一切有关费用","钢筋、混凝土、水泥、砂、砖、防盗球墨铸铁检查井盖、拉力环","按竣工图图示尺寸且验收合格为准","座",9,null,{"v":0.03,"d":"3.00%"},0,{"v":0,"d":"0.00"},"RK(I)-3-1 "]
[242,"大号四通型人孔井","1、名称:大号四通型通信人孔井\n2、其他：详见设计图纸及规范要求\n3、其他:综合考虑按图纸、规范、招标文件要求而实施、除甲供材外完成这项工程的一切有关费用","钢筋、混凝土、水泥、砂、砖、防盗球墨铸铁检查井盖、井座、拉力环","按竣工图图示尺寸且验收合格为准","座",3,null,{"v":0.03,"d":"3.00%"},0,{"v":0,"d":"0.00"},"RK(I)-3-3"]
[243,"通信管孔分布指示牌","1、标志板安装 单块面积 1m2内\n2、通信管孔分布指示牌 30*20cm\n3、其他:综合考虑按图纸、规范、招标文件要求而实施、除甲供材外完成这项工程的一切有关费用","/","按竣工图图示尺寸且验收合格为准","块",{"v":32,"d":"32.000"},null,{"v":0.03,"d":"3.00%"},0,{"v":0,"d":"0.00"}]
[244,"挖沟槽土方（利用方）","1、土壤类别：按地质勘察报告\n2、挖土深度：按现场情况综合考虑\n3、运距:可利用到填方，场内转运运距由投标人自行考虑\n4、其他:综合考虑按图纸、规范、招标文件要求而实施、除甲供材外完成这项工程的一切有关费用","/","1、按图纸所示施工范围，实挖土(石)方体积计算，以图示开挖底面积乘以开挖深度（按我方确定的原始地面方格网的平均标高至图示开挖底标高深度，扣减开挖范围内灌注桩所占体积）的体积另加图示放坡土方体积。因淤泥等其他一切因素造成的超挖导致的费用增加全部已包含在土方开挖的综合单价内不另计算。\n2、如同一个项目同时出现土方外运及场内转运的，分包人必须与项目部进行收方区分或者总平面图按区域划分。","m3",{"v":273.34,"d":"273.340"},null,{"v":0.03,"d":"3.00%"},0,{"v":0,"d":"0.00"},"场内土方平衡综合考虑"]
[245,"挖沟槽土方（本桩利用）","1、土壤类别:按地质勘察报告\n2、挖土深度:按现场情况综合考虑\n3、其他:综合考虑按图纸、规范、招标文件要求而实施、除甲供材外完成这项工程的一切有关费用","/","1、按图纸所示施工范围，实挖土(石)方体积计算，以图示开挖底面积乘以开挖深度（按我方确定的原始地面方格网的平均标高至图示开挖底标高深度，扣减开挖范围内灌注桩所占体积）的体积另加图示放坡土方体积。因淤泥等其他一切因素造成的超挖导致的费用增加全部已包含在土方开挖的综合单价内不另计算。\n2、如同一个项目同时出现土方外运及场内转运的，分包人必须与项目部进行收方区分或者总平面图按区域划分。","m3",{"v":589.74,"d":"589.740"},null,{"v":0.03,"d":"3.00%"},0,{"v":0,"d":"0.00"}]
[246,"回填土方（利用方）","1、密实度要求:按设计及规范要求\n2、填方材料品种:土方\n3、填方粒径要求:按设计及规范要求\n4、填方来源、运距:利用方\n5、其他:综合考虑按图纸、规范、招标文件要求而实施、除甲供材外完成这项工程的一切有关费用","/","按需回填部位，以实际回填体积计算（回填处底面积乘以设计图示回填土面标高至设计需回填部位底标高），扣除回填范围内的其他构筑物体积","m3",{"v":570.93,"d":"570.930"},null,{"v":0.03,"d":"3.00%"},0,{"v":0,"d":"0.00"}]
[247,"石屑垫层","1、密实度要求：按设计及规范要求\n2、材料品种：石屑\n3、填方粒径要求：按设计及规范要求\n4、填方来源：外购\n5、沟槽垫层\n6、其他:综合考虑按图纸、规范、招标文件要求而实施、除甲供材外完成这项工程的一切有关费用","石屑","按竣工图图示尺寸且验收合格为准","m3",{"v":57.14,"d":"57.140"},null,{"v":0.03,"d":"3.00%"},0,{"v":0,"d":"0.00"}]
[248,"缆线管廊工程","",null,null,""]
[249,"乙型缆线管廊","1、名称：乙型缆线管廊\n2、断面规格：B*H=(1+0.7)*0.8m\n2、垫层、基础材质及厚度:100mm厚C15混凝土垫层\n3、管廊平基：200mm厚C30钢筋混凝土\n4、侧墙采用砖砌结构\n5、盖板材质及规格：C30钢筋混凝土盖板，每隔8m设置一组现浇C25钢筋混凝土活动盖板\n6、玻璃钢复合材料支架\n8、防雷接地\n9、其他:综合考虑按图纸、规范、招标文件要求而实施、除甲供材外完成这项工程的一切有关费用","钢筋、混凝土、水泥、砂、砖、接地母线、玻璃钢复合材料组合支架、活动盖板镀锌框","按竣工图图示尺寸且验收合格为准","m",276.3,null,{"v":0.03,"d":"3.00%"},{"$f":"ROUND(H254*(1+I254),2)","v":0},{"$f":"ROUND(J254*G254,2)","v":{"v":0,"d":"0.00"}}]
[250,"通信排管12×De110UPVC(阻燃型）","1、名称:通信保护管\n2、规格:De110阻燃型\n3、材质:UPVC通信管\n4、敷设方式:管廊内敷设，12孔\n5、回填石屑\n6、其他:综合考虑按图纸、规范、招标文件要求而实施、除甲供材外完成这项工程的一切有关费用","石屑、UPVC通信管及配件、通信管密封圈、排管支架","按竣工图图示尺寸且验收合格为准","m",{"v":276.3,"d":"276.300"},null,{"v":0.03,"d":"3.00%"},0,{"v":0,"d":"0.00"}]
[251,"缆线管廊排水井","1、名称：缆线管廊排水井\n2、垫层：C15混凝土垫层\n3、底板：C30钢筋混凝土底板\n4、井身：砖砌\n5、固定盖板：现浇 C30钢筋混凝土\n6、活动盖板：现浇 C25钢筋混凝土\n7、压顶：C20商品普通混凝土\n8、玻璃钢复合材料支架\n10、其他:综合考虑按图纸、规范、招标文件要求而实施、除甲供材外完成这项工程的一切有关费用","钢筋、混凝土、水泥、砂、砖、玻璃钢复合材料组合支架、活动盖板镀锌框","按竣工图图示尺寸且验收合格为准","座",{"v":4,"d":"4.000"},null,{"v":0.03,"d":"3.00%"},0,{"v":0,"d":"0.00"}]
[252,"缆线管廊II型沟管中间人井","1、名称：缆线管廊II型沟管中间人井\n2、垫层：C15混凝土垫层\n3、底板：C30钢筋混凝土底板\n4、井身：砖砌\n5、固定盖板：现浇 C30钢筋混凝土\n6、活动盖板：现浇 C25钢筋混凝土\n7、压顶：C20商品普通混凝土\n8、预埋电缆支架\n9、其他:综合考虑按图纸、规范、招标文件要求而实施、除甲供材外完成这项工程的一切有关费用","钢筋、混凝土、水泥、砂、砖、支架、活动盖板镀锌框","按竣工图图示尺寸且验收合格为准","座",{"v":5,"d":"5.000"},null,{"v":0.03,"d":"3.00%"},0,{"v":0,"d":"0.00"}]
[253,"缆线管廊电力十字形人井","1、名称：缆线管廊电力十字形人井\n2、垫层：C15混凝土垫层\n3、底板：C30钢筋混凝土底板\n4、井身：砖砌\n5、固定盖板：现浇 C30钢筋混凝土\n6、活动盖板：现浇 C25钢筋混凝土\n7、压顶：C20商品普通混凝土\n8、玻璃钢复合材料支架\n9、其他:综合考虑按图纸、规范、招标文件要求而实施、除甲供材外完成这项工程的一切有关费用","钢筋、混凝土、水泥、砂、砖、玻璃钢复合材料支架、活动盖板镀锌框","按竣工图图示尺寸且验收合格为准","座",{"v":1,"d":"1.000"},null,{"v":0.03,"d":"3.00%"},0,{"v":0,"d":"0.00"}]
[254,"缆线管廊通信十字形人井","1、名称：缆线管廊通信十字形人井\n2、垫层：C15混凝土垫层\n3、底板：C30钢筋混凝土底板\n4、井身：砖砌\n5、固定盖板：现浇 C30钢筋混凝土\n6、活动盖板：现浇 C25钢筋混凝土\n7、压顶：C20商品普通混凝土\n8、预埋电缆支架\n9、其他:综合考虑按图纸、规范、招标文件要求而实施、除甲供材外完成这项工程的一切有关费用","钢筋、混凝土、水泥、砂、砖、支架、活动盖板镀锌框","按竣工图图示尺寸且验收合格为准","座",{"v":1,"d":"1.000"},null,{"v":0.03,"d":"3.00%"},0,{"v":0,"d":"0.00"}]
[255,"缆线管廊通信舱T1型人井","1、名称：缆线管廊通信舱T1型人井\n2、垫层：C15混凝土垫层\n3、底板：C35钢筋混凝土底板\n4、井身：砖砌\n5、固定盖板：现浇 C35钢筋混凝土\n6、活动盖板：现浇 C25钢筋混凝土\n7、压顶：C20商品普通混凝土\n8、预埋电缆支架\n9、其他:综合考虑按图纸、规范、招标文件要求而实施、除甲供材外完成这项工程的一切有关费用","钢筋、混凝土、水泥、砂、砖、支架、活动盖板镀锌框","按竣工图图示尺寸且验收合格为准","座",{"v":1,"d":"1.000"},null,{"v":0.03,"d":"3.00%"},0,{"v":0,"d":"0.00"}]
[256,"缆线管廊电力舱T2型人井","1、名称：缆线管廊通信舱T2型人井\n2、垫层：C15混凝土垫层\n3、底板：C30钢筋混凝土底板\n4、井身：砖砌\n5、固定盖板：现浇 C30钢筋混凝土\n6、活动盖板：现浇 C25钢筋混凝土\n7、压顶：C20商品普通混凝土\n8、玻璃钢复合材料支架\n9、其他:综合考虑按图纸、规范、招标文件要求而实施、除甲供材外完成这项工程的一切有关费用","钢筋、混凝土、水泥、砂、砖、支架、活动盖板镀锌框","按竣工图图示尺寸且验收合格为准","座",{"v":2,"d":"2.000"},null,{"v":0.03,"d":"3.00%"},0,{"v":0,"d":"0.00"}]
[257,"0.9×1.2手孔井","1、名称:手孔井\n2、规格:0.9×1.2手孔井\n3、其他:详见设计说明及相应图集\n4、其他:综合考虑按图纸、规范、招标文件要求而实施、除甲供材外完成这项工程的一切有关费用","钢筋、混凝土、水泥、砂、砖、防盗球墨铸铁检查井盖、拉力环","按竣工图图示尺寸且验收合格为准","座",{"v":13,"d":"13.000"},null,{"v":0.03,"d":"3.00%"},0,{"v":0,"d":"0.00"},"RK(I)-4-2"]
[258,"UPVC排水管|DN200","1、塑料管安装(粘接) 管外径200mm以内\n2、UPVC排水管 DN200\n3、其他:综合考虑按图纸、规范、招标文件要求而实施、除甲供材外完成这项工程的一切有关费用","UPVC排水管及配件","按竣工图图示尺寸且验收合格为准","m",{"v":192.51,"d":"192.510"},null,{"v":0.03,"d":"3.00%"},0,{"v":0,"d":"0.00"}]
[259,"挖沟槽土方（利用方）","1、土壤类别：按地质勘察报告\n2、挖土深度：按现场情况综合考虑\n3、运距:可利用到填方，场内转运运距由投标人自行考虑\n4、其他:综合考虑按图纸、规范、招标文件要求而实施、除甲供材外完成这项工程的一切有关费用","/","1、按图纸所示施工范围，实挖土(石)方体积计算，以图示开挖底面积乘以开挖深度（按我方确定的原始地面方格网的平均标高至图示开挖底标高深度，扣减开挖范围内灌注桩所占体积）的体积另加图示放坡土方体积。因淤泥等其他一切因素造成的超挖导致的费用增加全部已包含在土方开挖的综合单价内不另计算。\n2、如同一个项目同时出现土方外运及场内转运的，分包人必须与项目部进行收方区分或者总平面图按区域划分。","m3",{"v":2073.87,"d":"2073.870"},null,{"v":0.03,"d":"3.00%"},0,{"v":0,"d":"0.00"},"场内土方平衡综合考虑"]
[260,"挖沟槽土方（本桩利用）","1、土壤类别:按地质勘察报告\n2、挖土深度:按现场情况综合考虑\n3、其他:综合考虑按图纸、规范、招标文件要求而实施、除甲供材外完成这项工程的一切有关费用","/","1、按图纸所示施工范围，实挖土(石)方体积计算，以图示开挖底面积乘以开挖深度（按我方确定的原始地面方格网的平均标高至图示开挖底标高深度，扣减开挖范围内灌注桩所占体积）的体积另加图示放坡土方体积。因淤泥等其他一切因素造成的超挖导致的费用增加全部已包含在土方开挖的综合单价内不另计算。\n2、如同一个项目同时出现土方外运及场内转运的，分包人必须与项目部进行收方区分或者总平面图按区域划分。","m3",{"v":588.37,"d":"588.370"},null,{"v":0.03,"d":"3.00%"},0,{"v":0,"d":"0.00"}]
[261,"回填土方（利用方）","1、密实度要求:按设计及规范要求\n2、填方材料品种:土方\n3、填方粒径要求:按设计及规范要求\n4、填方来源、运距:利用方\n5、其他:综合考虑按图纸、规范、招标文件要求而实施、除甲供材外完成这项工程的一切有关费用","/","按需回填部位，以实际回填体积计算（回填处底面积乘以设计图示回填土面标高至设计需回填部位底标高），扣除回填范围内的其他构筑物体积","m3",{"v":588.37,"d":"588.370"},null,{"v":0.03,"d":"3.00%"},0,{"v":0,"d":"0.00"}]
[262,"石屑垫层","1、密实度要求：按设计及规范要求\n2、材料品种：石屑\n3、填方粒径要求：按设计及规范要求\n4、填方来源：外购\n5、沟槽垫层\n6、其他:综合考虑按图纸、规范、招标文件要求而实施、除甲供材外完成这项工程的一切有关费用","石屑","按竣工图图示尺寸且验收合格为准","m3",{"v":319.24,"d":"319.240"},null,{"v":0.03,"d":"3.00%"},0,{"v":0,"d":"0.00"}]
[263,"回填石屑","1、密实度要求:按设计及规范要求\n2、填方材料品种:石屑\n3、填方粒径要求:按设计及规范要求\n4、填方来源、运距:外购\n5、其他:综合考虑按图纸、规范、招标文件要求而实施、除甲供材外完成这项工程的一切有关费用","石屑","按竣工图图示尺寸且验收合格为准","m3",{"v":101.76,"d":"101.760"},null,{"v":0.03,"d":"3.00%"},0,{"v":0,"d":"0.00"}]
[264,"其他","",null,null,""]
[265,"现状电缆沟活动盖板加高","1、名称：现状电缆沟活动盖板加高\n2、更换现状电缆沟活动盖板,固定盖板段维持原状,其顶按照路面结构设计铺装\n3、其他:综合考虑按图纸、规范、招标文件要求而实施、除甲供材外完成这项工程的一切有关费用","钢筋、混凝土、水泥、砂","按竣工图图示尺寸且验收合格为准","座",{"v":31,"d":"31.000"},null,{"v":0.03,"d":"3.00%"},{"$f":"ROUND(H270*(1+I270),2)","v":0},{"$f":"ROUND(J270*G270,2)","v":{"v":0,"d":"0.00"}},"现有盖板不利用"]
[266,"拆除现状电缆沟","1、名称：拆除现状电缆沟\n2、拆除后外运\n3、其他:综合考虑按图纸、规范、招标文件要求而实施、除甲供材外完成这项工程的一切有关费用","/","按竣工图图示尺寸且验收合格为准","m",{"v":27,"d":"27.000"},null,{"v":0.03,"d":"3.00%"},{"$f":"ROUND(H271*(1+I271),2)","v":0},{"$f":"ROUND(J271*G271,2)","v":{"v":0,"d":"0.00"}}]
[267,"模板、脚手架工程"]
[268,"电缆沟工程"]
[269,"电力排管"]
[270,"垫层模板安拆","1、混凝土基础垫层 木模\n2、其他:综合考虑按图纸、规范、招标文件要求而实施、完成这项工程的一切有关费用（包括但不限于除甲供模板木方以外的材料及机具费用，如对拉螺杆、铁钉、铁丝、垫块等）","模板、木方","按《市政工程计量规范》执行","m2",38.988,null,{"v":0.03,"d":"3.00%"},{"$f":"ROUND(H275*(1+I275),2)","v":0},{"$f":"ROUND(J275*G275,2)","v":{"v":0,"d":"0.00"}}]
[271,"管、渠道及其他 管座 复合木模安拆","1、管、渠道及其他 管座 复合木模\n2、其他:综合考虑按图纸、规范、招标文件要求而实施、完成这项工程的一切有关费用（包括但不限于除甲供模板木方以外的材料及机具费用，如对拉螺杆、铁钉、铁丝、垫块等）","模板、木方","按《市政工程计量规范》执行","m2",{"v":3102.66,"d":"3102.660"},null,{"v":0.03,"d":"3.00%"},{"$f":"ROUND(H276*(1+I276),2)","v":0},{"$f":"ROUND(J276*G276,2)","v":{"v":0,"d":"0.00"}}]
[272,"电力检查井"]
[273,"垫层模板安拆","1、混凝土基础垫层 木模\n2、其他:综合考虑按图纸、规范、招标文件要求而实施、完成这项工程的一切有关费用（包括但不限于除甲供模板木方以外的材料及机具费用，如对拉螺杆、铁钉、铁丝、垫块等）","模板、木方","按《市政工程计量规范》执行","m2",5.419,null,{"v":0.03,"d":"3.00%"},{"$f":"ROUND(H278*(1+I278),2)","v":0},{"$f":"ROUND(J278*G278,2)","v":{"v":0,"d":"0.00"}}]
[274,"基础模板安拆","1、现浇混凝土模板制作、安装 混凝土基础\n2、其他:综合考虑按图纸、规范、招标文件要求而实施、完成这项工程的一切有关费用（包括但不限于除甲供模板木方以外的材料及机具费用，如对拉螺杆、铁钉、铁丝、垫块等）","模板、木方","按《市政工程计量规范》执行","m2",10.253,null,{"v":0.03,"d":"3.00%"},{"$f":"ROUND(H279*(1+I279),2)","v":0},{"$f":"ROUND(J279*G279,2)","v":{"v":0,"d":"0.00"}}]
[275,"预制盖板模板安拆","1、管、渠道及其他 井盖板木模\n2、其他:综合考虑按图纸、规范、招标文件要求而实施、完成这项工程的一切有关费用（包括但不限于除甲供模板木方以外的材料及机具费用，如对拉螺杆、铁钉、铁丝、垫块等）","模板、木方","按《市政工程计量规范》执行","m3",{"v":8.68,"d":"8.680"},null,{"v":0.03,"d":"3.00%"},{"$f":"ROUND(H280*(1+I280),2)","v":0},{"$f":"ROUND(J280*G280,2)","v":{"v":0,"d":"0.00"}}]
[276,"井字架安拆","1、木制井字架安拆 井深2m以内\n2、综合考虑按图纸、规范、招标文件要求而实施、完成这项工程的一切有关费用（包括但不限于除甲供钢管及扣件以外的材料及机具费用，如缆风绳、附墙锚杆等）\"","钢管、扣件","按《市政工程计量规范》执行","座",{"v":4,"d":"4.000"},null,{"v":0.03,"d":"3.00%"},{"$f":"ROUND(H281*(1+I281),2)","v":0},{"$f":"ROUND(J281*G281,2)","v":{"v":0,"d":"0.00"}}]
[277,"通信工程"]
[278,"通信排管"]
[279,"垫层模板安拆","1、混凝土基础垫层 木模\n2、其他:综合考虑按图纸、规范、招标文件要求而实施、完成这项工程的一切有关费用（包括但不限于除甲供模板木方以外的材料及机具费用，如对拉螺杆、铁钉、铁丝、垫块等）","模板、木方","按《市政工程计量规范》执行","m2",122.656,null,{"v":0.03,"d":"3.00%"},{"$f":"ROUND(H284*(1+I284),2)","v":0},{"$f":"ROUND(J284*G284,2)","v":{"v":0,"d":"0.00"}}]
[280,"管、渠道及其他 管座 复合木模安拆","1、管、渠道及其他 管座 复合木模\n2、其他:综合考虑按图纸、规范、招标文件要求而实施、完成这项工程的一切有关费用（包括但不限于除甲供模板木方以外的材料及机具费用，如对拉螺杆、铁钉、铁丝、垫块等）","模板、木方","按《市政工程计量规范》执行","m2",600.532,null,{"v":0.03,"d":"3.00%"},{"$f":"ROUND(H285*(1+I285),2)","v":0},{"$f":"ROUND(J285*G285,2)","v":{"v":0,"d":"0.00"}}]
[281,"通信检查井"]
[282,"垫层模板安拆","1、混凝土基础垫层 木模\n2、其他:综合考虑按图纸、规范、招标文件要求而实施、完成这项工程的一切有关费用（包括但不限于除甲供模板木方以外的材料及机具费用，如对拉螺杆、铁钉、铁丝、垫块等）","模板、木方","按《市政工程计量规范》执行","m2",{"v":28.24,"d":"28.240"},null,{"v":0.03,"d":"3.00%"},{"$f":"ROUND(H287*(1+I287),2)","v":0},{"$f":"ROUND(J287*G287,2)","v":{"v":0,"d":"0.00"}}]
[283,"预制盖板模板安拆","1、管、渠道及其他 井盖板木模\n2、其他:综合考虑按图纸、规范、招标文件要求而实施、完成这项工程的一切有关费用（包括但不限于除甲供模板木方以外的材料及机具费用，如对拉螺杆、铁钉、铁丝、垫块等）","模板、木方","按《市政工程计量规范》执行","m3",{"v":12.25,"d":"12.250"},null,{"v":0.03,"d":"3.00%"},{"$f":"ROUND(H288*(1+I288),2)","v":0},{"$f":"ROUND(J288*G288,2)","v":{"v":0,"d":"0.00"}}]
[284,"井字架安拆","1、木制井字架安拆 井深2m以内\n2、综合考虑按图纸、规范、招标文件要求而实施、完成这项工程的一切有关费用（包括但不限于除甲供钢管及扣件以外的材料及机具费用，如缆风绳、附墙锚杆等）\"","钢管、扣件","按《市政工程计量规范》执行","座",{"v":13,"d":"13.000"},null,{"v":0.03,"d":"3.00%"},{"$f":"ROUND(H289*(1+I289),2)","v":0},{"$f":"ROUND(J289*G289,2)","v":{"v":0,"d":"0.00"}}]
[285,"缆线管廊工程"]
[286,"缆线管廊"]
[287,"垫层模板安拆","1、混凝土基础垫层 木模\n2、其他:综合考虑按图纸、规范、招标文件要求而实施、完成这项工程的一切有关费用（包括但不限于除甲供模板木方以外的材料及机具费用，如对拉螺杆、铁钉、铁丝、垫块等）","模板、木方","按《市政工程计量规范》执行","m2",{"v":55.26,"d":"55.260"},null,{"v":0.03,"d":"3.00%"},{"$f":"ROUND(H292*(1+I292),2)","v":0},{"$f":"ROUND(J292*G292,2)","v":{"v":0,"d":"0.00"}}]
[288,"基础模板安拆","1、现浇混凝土模板制作、安装 混凝土基础\n2、其他:综合考虑按图纸、规范、招标文件要求而实施、完成这项工程的一切有关费用（包括但不限于除甲供模板木方以外的材料及机具费用，如对拉螺杆、铁钉、铁丝、垫块等）","模板、木方","按《市政工程计量规范》执行","m2",{"v":110.52,"d":"110.520"},null,{"v":0.03,"d":"3.00%"},0,{"v":0,"d":"0.00"}]
[289,"压顶模板安拆","1、现浇混凝土模板制作、安装 混凝土基础\n2、其他:综合考虑按图纸、规范、招标文件要求而实施、完成这项工程的一切有关费用（包括但不限于除甲供模板木方以外的材料及机具费用，如对拉螺杆、铁钉、铁丝、垫块等）","模板、木方","按《市政工程计量规范》执行","m2",{"v":165.78,"d":"165.780"},null,{"v":0.03,"d":"3.00%"},0,{"v":0,"d":"0.00"}]
[290,"固定盖板模板安拆","1、管、渠道及其他 顶(盖)板 复合木模\n2、其他:综合考虑按图纸、规范、招标文件要求而实施、完成这项工程的一切有关费用（包括但不限于除甲供模板木方以外的材料及机具费用，如对拉螺杆、铁钉、铁丝、垫块等）","模板、木方","按《市政工程计量规范》执行","m2",{"v":552.6,"d":"552.600"},null,{"v":0.03,"d":"3.00%"},0,{"v":0,"d":"0.00"}]
[291,"侧墙模板安拆","1、混凝土侧墙模板\n2、其他:综合考虑按图纸、规范、招标文件要求而实施、完成这项工程的一切有关费用（包括但不限于除甲供模板木方以外的材料及机具费用，如对拉螺杆、铁钉、铁丝、垫块等）","模板、木方","按《市政工程计量规范》执行","m2",1125.081,null,{"v":0.03,"d":"3.00%"},0,{"v":0,"d":"0.00"}]
[292,"预制盖板模板安拆","1、管、渠道及其他 井盖板木模\n2、其他:综合考虑按图纸、规范、招标文件要求而实施、完成这项工程的一切有关费用（包括但不限于除甲供模板木方以外的材料及机具费用，如对拉螺杆、铁钉、铁丝、垫块等）","模板、木方","按《市政工程计量规范》执行","m3",10.854,null,{"v":0.03,"d":"3.00%"},0,{"v":0,"d":"0.00"}]
[293,"过梁模板安拆","1、现浇混凝土模板制作、安装 支撑梁\n2、其他:综合考虑按图纸、规范、招标文件要求而实施、完成这项工程的一切有关费用（包括但不限于除甲供模板木方以外的材料及机具费用，如对拉螺杆、铁钉、铁丝、垫块等）","模板、木方","按《市政工程计量规范》执行","m2",7.812,null,{"v":0.03,"d":"3.00%"},0,{"v":0,"d":"0.00"}]
[294,"缆线管廊检查井"]
[295,"垫层模板安拆","1、混凝土基础垫层 木模\n2、其他:综合考虑按图纸、规范、招标文件要求而实施、完成这项工程的一切有关费用（包括但不限于除甲供模板木方以外的材料及机具费用，如对拉螺杆、铁钉、铁丝、垫块等）","模板、木方","按《市政工程计量规范》执行","m2",{"v":29.96,"d":"29.960"},null,{"v":0.03,"d":"3.00%"},{"$f":"ROUND(H300*(1+I300),2)","v":0},{"$f":"ROUND(J300*G300,2)","v":{"v":0,"d":"0.00"}}]
[296,"压顶模板安拆","1、现浇混凝土模板制作、安装 混凝土基础\n2、其他:综合考虑按图纸、规范、招标文件要求而实施、完成这项工程的一切有关费用（包括但不限于除甲供模板木方以外的材料及机具费用，如对拉螺杆、铁钉、铁丝、垫块等）","模板、木方","按《市政工程计量规范》执行","m2",{"v":38.12,"d":"38.120"},null,{"v":0.03,"d":"3.00%"},0,{"v":0,"d":"0.00"}]
[297,"基础模板安拆","1、现浇混凝土模板制作、安装 混凝土基础\n2、其他:综合考虑按图纸、规范、招标文件要求而实施、完成这项工程的一切有关费用（包括但不限于除甲供模板木方以外的材料及机具费用，如对拉螺杆、铁钉、铁丝、垫块等）","模板、木方","按《市政工程计量规范》执行","m2",{"v":37.74,"d":"37.740"},null,{"v":0.03,"d":"3.00%"},0,{"v":0,"d":"0.00"}]
[298,"固定盖板模板安拆","1、管、渠道及其他 顶(盖)板 复合木模\n2、其他:综合考虑按图纸、规范、招标文件要求而实施、完成这项工程的一切有关费用（包括但不限于除甲供模板木方以外的材料及机具费用，如对拉螺杆、铁钉、铁丝、垫块等）","模板、木方","按《市政工程计量规范》执行","m2",{"v":166.68,"d":"166.680"},null,{"v":0.03,"d":"3.00%"},0,{"v":0,"d":"0.00"}]
[299,"台阶模板安拆","1、台阶模板\n2、其他:综合考虑按图纸、规范、招标文件要求而实施、完成这项工程的一切有关费用（包括但不限于除甲供模板木方以外的材料及机具费用，如对拉螺杆、铁钉、铁丝、垫块等）","模板、木方","按《市政工程计量规范》执行","m2",{"v":87,"d":"87.000"},null,{"v":0.03,"d":"3.00%"},0,{"v":0,"d":"0.00"}]
[300,"预制盖板模板安拆","1、管、渠道及其他 井盖板木模\n2、其他:综合考虑按图纸、规范、招标文件要求而实施、完成这项工程的一切有关费用（包括但不限于除甲供模板木方以外的材料及机具费用，如对拉螺杆、铁钉、铁丝、垫块等）","模板、木方","按《市政工程计量规范》执行","m3",4.573,null,{"v":0.03,"d":"3.00%"},0,{"v":0,"d":"0.00"}]
[301,"井字架安拆","1、木制井字架安拆 井深2m以内\n2、综合考虑按图纸、规范、招标文件要求而实施、完成这项工程的一切有关费用（包括但不限于除甲供钢管及扣件以外的材料及机具费用，如缆风绳、附墙锚杆等）\"","钢管、扣件","按《市政工程计量规范》执行","座",{"v":10,"d":"10.000"},null,{"v":0.03,"d":"3.00%"},0,{"v":0,"d":"0.00"}]
[302,"安全文明措施费","包括但不限于绿色施工费（包括绿色施工、工完场清、现场环境保护、场地内抽排水、雨污水临时倒排、扬尘控制（绿网铺设、喷淋设备、雾炮机安装及维护）费用）、安全防护措施费(临时设施、安全施工、临边洞口防护、安全防护设施、安全防护用品和用工实名管理)、文明工地（文明标识标牌、警示标志、宣传标语安装费用）、夜间施工费、赶工措施费、其他（现场卫生保洁、噪声控制（隔音设施）、临时交通设施摆放安装）等费用，主要设备材料甲供。","/","按完成产值占比合同额百分比，与进度款同步支付","项",{"v":1,"d":"1.000"},null,{"v":0.03,"d":"3.00%"},0,{"v":0,"d":"0.00"}]
[{"$nulls":10},{"v":297000,"d":"297000.00"}]
[null,"合计",{"$nulls":8},3266432.34]

{"sheet":"甲定品牌一览表","index":2,"n_rows":52,"n_cols":5,"rows_kept":52,"merged":[[0,0,0,3],[1,0,1,3],[3,3,50,3],[51,0,51,4]]}
[{"$f":"清单编制说明!A1","v":"广昌保障房配套基础设施项目施工总承包--土建劳务分包（均昌路+广湾街）"}]
["承包人供应材料、机械设备、机具、构配件一览表"]
["序号","材料名称","规格型号","损耗率","备注"]
[1,"钢筋",null,"以招标技术要求为准"]
[2,"混凝土"]
[3,"水泥"]
[4,"砂"]
[5,"砂砾"]
[6,"碎石"]
[7,"石屑"]
[8,"外购土"]
[9,"片石"]
[10,"标准砖","240×115×53"]
[11,"MU20蒸压灰砂砖","240×115×53"]
[12,"透水砖","200*100*50mm"]
[13,"彩色透水砖","200mm×100mm×60mm"]
[14,"黄色盲道砖","300mm×300mm×60mm"]
[15,"芝麻灰花岗岩板","300mm×150mm×20mm；600mm×300mm×50mm"]
[16,"光面花岗岩板","20mm"]
[17,"花岗岩人行道砖","200mm×100mm×60mm"]
[18,"花岗岩路侧石","1000mm×400mm×150mm；1000mm×450mm×150mm"]
[19,"花岗岩路平石","1000mm×200mm×100mm"]
[20,"花岗岩防撞柱","Φ300"]
[21,"仿花岗岩路侧石","1000mm×400mm×150mm"]
[22,"仿花岗岩路平石","1000mm×200mm×100mm"]
[23,"Ⅱ级钢筋混凝土管","D300、D800、D1000"]
[24,"橡胶圈","D300、D400、D800、D1000"]
[25,"预制圆形混凝土污水检查井","Φ1000"]
[26,"预制圆形混凝土雨水检查井","Φ1500"]
[27,"球墨铸铁污水管","DN400、DN500、DN600"]
[28,"球墨铸铁可调式防沉降检查井盖座","Φ700，D400"]
[29,"防盗球墨铸铁检查井盖","φ700 C250"]
[30,"拉力环（镀锌圆钢）","Φ16"]
[31,"铸铁平箅含井圈","750*450"]
[32,"纤维编绕拉挤电缆导管","DB-BWFRP150*5.5-SN50"]
[33,"UPVC通信排管及配件","φ110*5 阻燃"]
[34,"通信管密封圈","Φ110"]
[35,"通信管成品排管支架","Φ110"]
[36,"通信管 成品排管支架","Φ110"]
[37,"PVC-U密封圈","Φ110"]
[38,"UPVC排水管及配件","DN200"]
[39,"成品排管支架","Φ150"]
[40,"成品复合材料电缆沟支架","FRP-L300"]
[41,"玻璃钢复合材料组合支架","Y-300；FRP-L450/300；a、b、c型"]
[42,"接地母线","镀锌扁钢 40*4"]
[43,"活动盖板镀锌框"]
[44,"HDPE实壁排水管","D400"]
[45,"模板"]
[46,"木方"]
[47,"钢管、扣件"]
[48,"支撑角钢","L40*4"]
["备注：1、乙方在施工过程中使用的甲供量超过图纸使用量，超出部分由乙方自行承担；\n2、该表与工程量清单中的甲供材列相互补充，若相同清单项甲供材列不一致，以品类齐全项为准。"]

{"sheet":"定额计价程序表","index":3,"n_rows":101,"n_cols":4,"rows_kept":101,"merged":[[0,0,0,3],[23,0,23,3],[24,0,24,3],[25,0,25,3],[26,0,26,3],[49,0,49,3],[50,0,50,3],[51,0,51,3],[74,0,74,3],[75,0,75,3],[77,0,77,3],[100,0,100,3],[101,0,101,3]]}
["建筑与装饰工程定额计价程序表"]
["序号","费用名称","取费基数","费率(%)"]
["1","分部分项工程费","1.1+1.2"]
["1.1","定额分部分项工程费","1.1.1+1.1.2+1.1.3+1.1.4"]
["1.1.1","人工费","分部分项人工费"]
["1.1.2","材料费","分部分项材料费+分部分项主材费+分部分项设备费"]
["1.1.3","机具费","分部分项机具费"]
["1.1.4","管理费","分部分项管理费"]
[1.2,"利润","人工费+机具费",{"v":0.2,"d":"20.00%"}]
["2","措施项目费","2.1+2.2"]
["2.1","绿色施工安全防护措施费","人工费+机具费",{"v":0.13,"d":"13.00%"}]
["2.2","其他措施项目费"]
["3","其他项目费","3.1+3.2+3.3","只计算模板"]
[3.1,"总承包服务费",null,{"v":0,"d":"0.00%"}]
[3.2,"预算包干费","人工费+机具费",{"v":0.07,"d":"7.00%"}]
[3.3,"工程优质费",null,"按合同相关条款执行"]
["4","税前工程造价","1+2+3"]
[5,"下浮工程造价","4*浮动率","详见清单编制说明"]
[6,"增值税销项税额","5*税率",{"v":0.03,"d":"3.00%"}]
[7,"含税工程造价","5+6"]
[8,"独立费"]
[9,"甲供材料超领扣款",null,"按合同相关条款执行"]
[10,"工程造价总计","7+8-9"]
["注：1、如施工期间，政府相关费率调整，则上述税率相应调整："]
[]
[]
["安装工程定额计价程序表"]
["序号","费用名称","取费基数","费率(%)"]
["1","分部分项工程费","1.1+1.2"]
["1.1","定额分部分项工程费","1.1.1+1.1.2+1.1.3+1.1.4"]
["1.1.1","人工费","分部分项人工费"]
["1.1.2","材料费","分部分项材料费+分部分项主材费+分部分项设备费"]
["1.1.3","机具费","分部分项机具费"]
["1.1.4","管理费","分部分项管理费"]
[1.2,"利润","人工费+机具费",{"v":0.2,"d":"20.00%"}]
["2","措施项目费","2.1+2.2"]
["2.1","绿色施工安全防护措施费","人工费+机具费",{"v":0.3577,"d":"35.77%"}]
["2.2","其他措施项目费",null,"只计算模板"]
["3","其他项目费","3.1+3.2+3.3"]
[3.1,"总承包服务费",null,{"v":0,"d":"0.00%"}]
[3.2,"预算包干费","人工费+机具费",{"v":0.1,"d":"10.00%"}]
[3.3,"工程优质费",null,"按合同相关条款执行"]
["4","税前工程造价","1+2+3"]
[5,"下浮工程造价（甲供、甲定价材料除外）","4*浮动率","详见清单说明规定"]
[6,"增值税销项税额","5*税率",{"v":0.03,"d":"3.00%"}]
[7,"含税工程造价","5+6"]
[8,"独立费"]
[9,"甲供材料超领扣款",null,"按合同相关条款执行"]
[10,"工程造价总计","7+8-9"]
["注：1、如施工期间，政府相关费率调整，则上述税率相应调整："]
[]
["市政工程计价程序表"]
["序号","费用名称","计算基础","费率"]
["1","分部分项工程费","1.1+1.2"]
["1.1","定额分部分项工程费","1.1.1+1.1.2+1.1.3+1.1.4"]
["1.1.1","人工费","分部分项人工费"]
["1.1.2","材料费","分部分项材料费+分部分项主材费+分部分项设备费"]
["1.1.3","机具费","分部分项机具费"]
["1.1.4","管理费","分部分项管理费"]
[1.2,"利润","人工费+机具费",{"v":0.15,"d":"15.00%"}]
["2","措施项目费","2.1+2.2"]
["2.1","绿色施工安全防护措施费","人工费+机具费","单独场地平整工程4.35%；道路、管网工程16.5%；桥梁、隧道、水处理构筑物工程14.5%。"]
["2.2","其他措施项目费",null,"只计算模板"]
["3","其他项目费","3.1+3.2+3.3"]
[3.1,"总承包服务费",null,{"v":0,"d":"0.00%"}]
[3.2,"预算包干费","人工费+机具费",{"v":0.06,"d":"6.00%"}]
[3.3,"工程优质费",null,"按合同相关条款执行"]
["4","税前工程造价","1+2+3"]
[5,"下浮工程造价（甲供、甲定价材料除外）","4*浮动率","详见清单说明规定"]
[6,"增值税销项税额","5*税率",{"v":0.03,"d":"3.00%"}]
[7,"含税工程造价","5+6"]
[8,"独立费"]
[9,"甲供材料超领扣款",null,"按合同相关条款执行"]
[10,"工程造价总计","7+8-9"]
["注：1、如施工期间，政府相关费率调整，则上述税率相应调整："]
["2、分部分项工程总费用在300万元以内（含300万元）的项目绿色施工安全防护措施费按基准费率乘以1.2。"]
[]
["园林绿化工程计价程序表"]
["序号","费用名称","计算基础","费率"]
["1","分部分项工程费","1.1+1.2"]
["1.1","定额分部分项工程费","1.1.1+1.1.2+1.1.3+1.1.4"]
["1.1.1","人工费","分部分项人工费"]
["1.1.2","材料费","分部分项材料费+分部分项主材费+分部分项设备费"]
["1.1.3","机具费","分部分项机具费"]
["1.1.4","管理费","分部分项管理费"]
[1.2,"利润","人工费+机具费",{"v":0.15,"d":"15.00%"}]
["2","措施项目费","2.1+2.2"]
["2.1","绿色施工安全防护措施费","人工费+机具费",{"v":0.1,"d":"10.00%"}]
["2.2","其他措施项目费",null,"/"]
["3","其他项目费","3.1+3.2+3.3"]
[3.1,"总承包服务费",null,{"v":0,"d":"0.00%"}]
[3.2,"预算包干费","人工费+机具费",{"v":0.06,"d":"6.00%"}]
[3.3,"工程优质费",null,"按合同相关条款执行"]
["4","税前工程造价","1+2+3"]
[5,"下浮工程造价（甲供、甲定价材料除外）","4*浮动率","详见清单说明规定"]
[6,"增值税销项税额","5*税率",{"v":0.03,"d":"3.00%"}]
[7,"含税工程造价","5+6"]
[8,"独立费"]
[9,"甲供材料超领扣款",null,"按合同相关条款执行"]
[10,"工程造价总计","7+8-9"]
["注：1、如施工期间，政府相关费率调整，则上述税率相应调整："]